Cogmind - Beta 12 @@@ ROGUE MODE // 2023.09.06 @ 23:47:37 Player: lyrabold Result: Destroyed by MAIN.C with Omega Cannon Performance ------------- Evolutions (9) 4500 Regions Visited (37) 7400 Robots Destroyed (465) 2325 Value Destroyed (14602) 14602 Prototype IDs (112) 2240 Alien Tech Used (8) 1600 Bonus (20770) 20770 TOTAL SCORE: 53437 Bonus ------- Triggered Max Security 3000 High Alert Combat Kills 3125 Follower Combat Kills 3107 Network Hubs Disabled 600 Aligned with FarCom 300 Met Data Miner 300 Destroyed Z-Imprinter 1000 Met Zhirov 300 Built Enhanced Grunts 300 A7 Reached Mainframe 300 Used Core Reset Matrix 3000 Destroyed MAIN.C Guards 500 Met MAIN.C 5000 Destroyed MAIN.C Shell 5000 Friendly Fire -5062 Cogmind --------- Core Integrity 0/1600 Matter 60/300 Energy 52/350 System Corruption 66% Temperature Cool (0) Movement Core (50) Location -1/Command Parts ------- > --- POWER (4) -------- (None) > --- PROPULSION (9) --- (None) > --- UTILITY (10) ----- Improved Melee Analysis Suite Improved Melee Analysis Suite > --- WEAPON (3) ------- Longsword +1 > --- INVENTORY (5) ---- 2N-1CE's Frost Array Makeshift Terrain Scanner Z-bomb Delivery System Peak State ------------ > --- POWER ------------ Micro Antimatter Reactor Zero-point Reactor Vortex Chain Reactor > --- PROPULSION ------- Cooled Gravmag System Combat Gravmag System Combat Gravmag System Combat Gravmag System Combat Gravmag System Combat Gravmag System Combat Gravmag System Combat Linear Gravjet Combat Linear Gravjet > --- UTILITY ---------- 2N-1CE's Frost Array Large Storage Unit Zionite Metafield Generator Surveybot 24 Chip Quantum Capacitor Advanced Phase Shifter Heavy Regenerative Plating AEGIS Remote Shield > --- WEAPON ----------- Enhanced Nova Cannon Sigix Broadsword > --- INVENTORY -------- Experimental Energy Well Experimental Energy Well Zionite Biocell Experimental Matter Compressor Makeshift Terrain Scanner Advanced Force Field Long-range Tractor Beam Transdimensional Reconstructor Spacefold Activator Warp Gun Compact HERF Cannon Z-bomb Delivery System Longsword +1 [Rating: 224] Favorites ----------- Power Micro Antimatter Reactor Engine Ion Engine Power Core Micro Nuclear Core Reactor Micro Antimatter Reactor Propulsion Combat Airjet Treads Medium Treads Leg Enhanced Armored Leg Wheel Wheel Hover Unit Combat Airjet Flight Unit Cooled Nuclear Pulse Thruster Utility Large Storage Unit Device Structural Scanner Storage Large Storage Unit Processor Improved Targeting Computer Hackware Advanced Hacking Suite Protection Centrium Medium Armor Plating Artifact Spacefold Activator Weapon Longsword +1 Energy Gun EM Shotgun Energy Cannon Neutron Cannon Ballistic Gun Enhanced Autogun Ballistic Cannon Light Cannon Launcher Improved Grenade Launcher Special Weapon RU-N14's Throwing Claymores Impact Weapon Great Maul Slashing Weapon Longsword +1 Piercing Weapon Makeshift Spear Build | -11 -10 -10 -10 -9 -8 -7 -7 -7 -7 -7 -6 -6 -6 -6 -6 -5 -5 -5 -5 -5 -5 -5 -5 -4 -4 -4 -4 -4 -4 -3 -3 -3 -2 -2 -2 -1 -1 ------- Run | Jun Mat Min Exi Min Mat Fac Low Low Zio Dee Pro Fac Low Low Dat Pro Fac Was Fac Ext Cet Arc Hub Fac Was Fac Upp Upp Zhi Pro Res Qua Res Tes Sec Acc Com Slots Evolved 18 | . . . . . 4 2 . . . . . 2 . . . . 2 . . . . . . 2 . . . . . . 2 . 2 . . 2 . Power 2 | . . . . . . 1 . . . . . . . . . . . . . . . . . . . . . . . . 1 . . . . . . Propulsion 7 | . . . . . 2 . . . . . . 1 . . . . 1 . . . . . . 1 . . . . . . . . 1 . . 1 . Utility 8 | . . . . . 2 1 . . . . . 1 . . . . 1 . . . . . . 1 . . . . . . 1 . . . . 1 . Weapon 1 | . . . . . . . . . . . . . . . . . . . . . . . . . . . . . . . . . 1 . . . . Parts Attached 896 | 7 18 3 2 6 60 70 39 18 14 50 14 57 20 13 1 20 20 11 13 18 11 6 11 32 10 25 12 5 11 6 33 2 90 25 7 18 118 Power 60 | 1 1 . . . 3 3 . 1 2 2 . 5 2 . . . 4 1 1 2 1 1 . 2 . . 2 . 2 . 5 . 6 . . 1 12 Engine 6 | 1 1 . . . . 1 . . 2 . . 1 . . . . . . . . . . . . . . . . . . . . . . . . . Core 22 | . . . . . 3 2 . 1 . . . 4 2 . . . 2 1 1 2 . . . 1 . . . . 1 . 1 . 1 . . . . Reactor 32 | . . . . . . . . . . 2 . . . . . . 2 . . . 1 1 . 1 . . 2 . 1 . 4 . 5 . . 1 12 Propulsion 115 | 2 5 1 . 2 19 13 2 . 1 10 . 7 . . . . 2 . 1 2 1 . 1 9 . 4 . . . . 5 . 11 5 . 3 9 Treads 29 | 2 4 . . 1 12 9 . . . . . . . . . . . . . . . . . . . . . . . . . . . . . . 1 Leg 12 | . 1 1 . 1 3 2 2 . 1 1 . . . . . . . . . . . . . . . . . . . . . . . . . . . Wheel 2 | . . . . . 2 . . . . . . . . . . . . . . . . . . . . . . . . . . . . . . . . Hover 71 | . . . . . 2 1 . . . 9 . 7 . . . . 2 . 1 2 1 . 1 9 . 4 . . . . 5 . 11 5 . 3 8 Flight 1 | . . . . . . 1 . . . . . . . . . . . . . . . . . . . . . . . . . . . . . . . Utility 434 | 2 3 2 . 2 15 26 19 6 3 21 4 35 7 . . 10 8 6 7 10 5 5 3 15 9 16 9 1 8 1 16 2 60 15 6 14 63 Device 316 | 1 1 2 . 1 7 17 11 6 2 12 4 31 5 . . 8 7 6 6 9 2 4 1 15 7 10 7 1 7 . 14 2 43 13 3 8 43 Storage 20 | 1 2 . . 1 1 . . . . 2 . . . . . 1 . . . . . . . . . . . . . 1 1 . . 1 . 2 7 Processor 19 | . . . . . 3 1 . . 1 . . 1 . . . . . . . . . . . . . 2 . . . . 1 . 5 1 . . 4 Hackware 9 | . . . . . . 1 . . . . . 1 . . . . 1 . . . . 1 1 . . . . . . . . . 4 . . . . Protection 63 | . . . . . 4 7 8 . . 7 . 2 2 . . 1 . . 1 1 3 . 1 . 2 4 2 . 1 . . . 8 . . 1 8 Artifact 7 | . . . . . . . . . . . . . . . . . . . . . . . . . . . . . . . . . . . 3 3 1 Weapon 287 | 2 9 . 2 2 23 28 18 11 8 17 10 10 11 13 1 10 6 4 4 4 4 . 7 6 1 5 1 4 1 5 7 . 13 5 1 . 34 Energy Gun 47 | . 9 . 1 1 7 4 2 4 2 1 . 1 . . . . . . . . . . . . . . . . . . . . . 2 . . 13 Energy Cannon 77 | . . . . . 1 2 7 1 2 2 4 4 4 5 . 4 3 . . . . . 3 3 . 2 . . . 2 6 . 9 2 1 . 10 Ballistic Gun 35 | 2 . . 1 . 10 9 1 4 1 3 . . . 1 . . . . . . . . . . . . . . . . . . . . . . 3 Ballistic Cannon 2 | . . . . . 1 . . . . . . . . . . . . . . . . . . . . . . . . . . . 1 . . . . Launcher 35 | . . . . . 4 9 6 2 . . . . . . . . . 1 1 2 2 . . . . 1 . 2 1 . . . 1 . . . 3 Special Weapon 9 | . . . . 1 . . . . . 5 . . 2 . 1 . . . . . . . . . . . . . . . . . . . . . . Impact Weapon 1 | . . . . . . . . . 1 . . . . . . . . . . . . . . . . . . . . . . . . . . . . Slashing Weapon 51 | . . . . . . 4 2 . 1 3 2 1 . . . 1 3 2 3 2 2 . 4 3 1 2 1 2 . 3 1 . 2 1 . . 5 Piercing Weapon 30 | . . . . . . . . . 1 3 4 4 5 7 . 5 . 1 . . . . . . . . . . . . . . . . . . . Special Melee Weapon . | . . . . . . . . . . . . . . . . . . . . . . . . . . . . . . . . . . . . . . Unidentified Prototypes 43 | . . 1 . . 1 8 . . 1 11 . 1 . . . 2 . . . . 2 . . . 1 . 1 . 2 . 1 1 . 3 . . 7 Corrupted Parts 10 | . 1 . . 1 . . . . . . . . . . . . . . . . . 1 . . . . . . . . . . . . . . 7 System Corruption 43 | . 2 . . 5 . . . . . . . . . . . . . . . . . 1 . . . . . . . . . . . . . . 35 Parts Lost 56 | . 2 . . . 15 9 3 1 . 3 . . . . . . . . . 1 . . . 1 . . . 1 . . . . . . . . 20 Power 8 | . . . . . 1 1 . 1 . 2 . . . . . . . . . . . . . . . . . . . . . . . . . . 3 Propulsion 17 | . . . . . 7 3 . . . . . . . . . . . . . . . . . 1 . . . . . . . . . . . . 6 Utility 23 | . . . . . 3 4 3 . . 1 . . . . . . . . . 1 . . . . . . . 1 . . . . . . . . 10 Weapon 8 | . 2 . . . 4 1 . . . . . . . . . . . . . . . . . . . . . . . . . . . . . . 1 Highest Loss Streak 20 | . 1 . . . 11 3 3 1 . 3 . . . . . . . . . 1 . . . 1 . . . 1 . . . . . . . . 20 To Critical Strikes . | . . . . . . . . . . . . . . . . . . . . . . . . . . . . . . . . . . . . . . Average Slot Usage (%) 94 | . 96 99 71 100 85 95 99 99 96 91 84 92 96 100 100 100 99 99 99 99 99 93 94 93 94 97 100 99 99 100 99 100 91 91 88 86 84 Engine 3 | . 14 14 14 14 1 5 . . 14 3 . . . . . . . . . . . . . . . . . . . . . . . . . . . Core 4 | . . . . . 6 9 15 14 . . . 5 6 6 6 6 5 6 11 11 10 . . . . . . . . . 1 . . . . . . Reactor 4 | . . . . . . . . . . 9 7 6 6 6 6 6 5 4 . . . 10 11 9 10 10 10 10 10 10 12 14 11 8 8 7 9 Treads 6 | . 14 14 14 14 23 29 14 7 5 . . . . . . . . . . . . . . . . . . . . . . . . . . . . Leg 6 | . 10 13 14 14 2 . 15 23 24 23 . . . . . . . . . . . . . . . . . . . . . . . . . . . Hover 16 | . . . . . . . . . . 6 30 33 33 33 33 33 34 35 35 35 34 29 29 30 31 33 36 36 36 36 33 33 33 34 33 33 33 Device 17 | . 13 14 14 13 6 7 9 22 21 11 15 19 20 20 20 20 21 23 23 28 29 23 21 20 21 21 21 20 20 21 22 23 20 21 16 22 20 Storage 7 | . 14 14 14 14 9 7 7 7 7 7 7 6 6 6 6 6 5 5 5 5 5 5 5 5 5 5 5 5 5 5 4 4 4 4 4 3 3 Processor 2 | . . . . . 5 7 13 . 1 2 . . . . . . . . . . . . . . . . . . . . 2 4 4 4 4 3 3 Hackware 1 | . . . . . . 1 . . . . . . . . . . 3 5 5 . . 4 5 5 5 5 5 5 5 5 4 4 4 4 4 1 . Protection 5 | . . . . . 7 8 5 7 7 10 7 6 9 13 13 12 7 5 4 5 5 5 6 10 9 9 10 10 10 10 5 4 4 4 4 3 2 Energy Gun 4 | . 26 28 . 13 5 . 6 2 . 3 . . . . . . . . . . . . . . . . . . . . . . . . . . 1 Energy Cannon 1 | . . . . . . . 6 6 3 2 . . . . . . . . . . . . . . . . . . . . 1 4 3 3 2 3 . Ballistic Gun 2 | . 1 . . 14 11 12 . 5 6 3 . . . . . . . . . . . . . . . . . . . . . . . . . . . Slashing Weapon 4 | . . . . . . . . . . . 7 6 6 6 6 6 10 10 10 10 10 11 10 9 10 9 10 9 10 9 6 4 3 4 5 3 3 Naked Turns . | . . . . . . . . . . . . . . . . . . . . . . . . . . . . . . . . . . . . . . Heaviest Build 142 | 12 51 51 53 53 112 137 138 137 116 142 53 57 60 61 60 58 62 56 56 59 59 68 68 76 80 79 74 75 74 67 91 93 112 115 111 129 142 Greatest Support 138 | 40 40 20 20 20 80 112 84 60 80 80 49 61 57 57 57 57 66 66 66 66 68 68 68 89 81 83 83 83 83 95 92 102 116 116 119 130 138 Greatest Overweight (x) 22 | . 4 5 2 2 11 1 2 2 1 1 1 1 1 1 1 1 . . . 1 . 22 . 1 . . . . . . 1 . 2 . . 1 1 Average Overweight (x) . | . . 2 2 2 5 . 1 1 1 . . . . . . . . . . . . 15 . . . . . . . . . . . . . . . Largest Inventory Capacity 25 | 8 20 20 20 20 25 25 25 25 25 25 15 15 15 15 15 15 15 15 15 15 15 15 15 15 15 15 15 15 15 15 15 15 15 15 15 25 15 Average Capacity 18 | 7 13 20 20 20 23 25 25 25 25 23 15 15 15 15 15 15 15 15 15 15 15 15 15 15 15 15 15 15 15 15 15 15 15 15 15 15 14 Most Carried 25 | 4 12 17 20 20 25 25 25 25 25 25 15 15 15 15 15 15 15 15 15 15 15 15 15 15 15 15 15 15 15 15 15 15 15 15 15 15 15 Average Carried 17 | 2 9 14 19 19 22 23 24 24 24 22 15 14 14 14 15 14 14 14 14 14 14 14 14 14 14 14 15 14 14 15 14 14 14 14 14 14 13 Final Capacity 25 | 8 20 20 20 20 25 25 25 25 25 15 15 15 15 15 15 15 15 15 15 15 15 15 15 15 15 15 15 15 15 15 15 15 15 15 15 15 5 Final Carried 25 | 4 12 17 18 20 25 25 25 25 25 15 15 15 15 15 15 15 15 15 15 15 15 15 15 15 15 15 15 15 15 15 15 15 15 15 15 15 3 Class Distribution -------------------- 39% | Mutant 32% | Scavenger-Mutant 14% | Commander-Mutant 4% | Alien-Ninja 3% | Alien-Sprinter Dominant Class ---------------- Mutant | -10/Materials Mutant | -10/Mines Mutant | -10/Exiles Mutant | -9/Mines Scavenger-Mutant | -8/Materials Scavenger-Mutant | -7/Factory Mutant | -7/Lower Caves Mutant | -7/Lower Caves Mutant | -7/Zion Scavenger-Mutant | -7/Deep Caves Scavenger-Mutant | -6/Proximity Caves Scavenger-Mutant | -6/Factory Scavenger-Mutant | -6/Lower Caves Scavenger-Mutant | -6/Lower Caves Scavenger-Mutant | -6/Data Miner Scavenger-Mutant | -5/Proximity Caves Scavenger-Mutant | -5/Factory Scavenger-Mutant | -5/Waste Infiltrator-Mutant | -5/Factory Commander-Mutant | -5/Extension Commander-Mutant | -5/Cetus Commander-Mutant | -5/Archives Commander-Mutant | -5/Hub_04(d) Scavenger-Mutant | -4/Factory Scavenger-Mutant | -4/Waste Scavenger-Mutant | -4/Factory Scavenger-Mutant | -4/Upper Caves Scavenger-Mutant | -4/Upper Caves Scavenger-Mutant | -4/Zhirov Scavenger-Mutant | -3/Proximity Caves Scavenger-Ninja | -3/Research Scavenger-Ninja | -3/Quarantine Alien-Ninja | -2/Research Alien-Ninja | -2/Testing Alien-Ninja | -2/Section 7 Alien-Ninja | -1/Access Alien-Sprinter | -1/Command Resources | -11 -10 -10 -10 -9 -8 -7 -7 -7 -7 -7 -6 -6 -6 -6 -6 -5 -5 -5 -5 -5 -5 -5 -5 -4 -4 -4 -4 -4 -4 -3 -3 -3 -2 -2 -2 -1 -1 ----------- Run | Jun Mat Min Exi Min Mat Fac Low Low Zio Dee Pro Fac Low Low Dat Pro Fac Was Fac Ext Cet Arc Hub Fac Was Fac Upp Upp Zhi Pro Res Qua Res Tes Sec Acc Com Matter Collected 13821 | 341 179 101 . 164 1628 2001 594 401 195 204 18 541 394 140 . 162 223 140 146 263 110 60 110 310 110 350 170 95 160 70 312 89 921 . 242 303 2574 Remotely 2149 | . . . . . 127 994 . . . . . . . . . . . . . . . . . . . . . . . . . . . . . . 1028 Salvage Created 23901 | 232 1012 251 . 94 2719 2720 412 193 . 380 . 1133 584 241 . 481 456 138 686 1741 90 255 567 792 132 261 583 88 215 153 685 89 1961 . 242 567 3748 Parts 1078 | 15 58 10 . 6 127 132 22 12 . 35 . 53 12 5 . 18 28 6 23 60 8 20 27 41 4 19 31 12 2 11 33 4 87 . 9 22 126 Haulers Intercepted 24 | . 2 . . . 6 2 . . . . . 1 . . . . . . 2 . . . 2 . . . 1 . . . 2 1 5 . . . . Recyclers Shooed 19 | . 1 1 . . 7 6 . . . . . 2 . . . . . . 1 . . . . . . . . . . . . . 1 . . . . Parts Field Recycled 10 | . . . . . . . . 7 . 3 . . . . . . . . . . . . . . . . . . . . . . . . . . . Retrieved Matter 348 | . . . . . . . . 159 . 189 . . . . . . . . . . . . . . . . . . . . . . . . . . . Parts Self-Destructed 98 | . . . . . . . 16 9 4 . . . 6 5 . 14 . . . . . . . . . . 27 4 2 11 . . . . . . . Prevented . | . . . . . . . . . . . . . . . . . . . . . . . . . . . . . . . . . . . . . . Kills | -11 -10 -10 -10 -9 -8 -7 -7 -7 -7 -7 -6 -6 -6 -6 -6 -5 -5 -5 -5 -5 -5 -5 -5 -4 -4 -4 -4 -4 -4 -3 -3 -3 -2 -2 -2 -1 -1 ------- Run | Jun Mat Min Exi Min Mat Fac Low Low Zio Dee Pro Fac Low Low Dat Pro Fac Was Fac Ext Cet Arc Hub Fac Was Fac Upp Upp Zhi Pro Res Qua Res Tes Sec Acc Com Combat Hostiles Destroyed 243 | . 17 4 . 6 40 37 16 8 . 9 . 1 6 2 . 8 7 . 7 14 . 1 3 5 . 5 6 8 . 4 . . 2 . . . 27 Melee 56 | . . . . . . . . . . . . 1 2 2 . 8 7 . 1 12 . 1 3 5 . 1 6 . . 4 . . 2 . . . 1 Guns 88 | . 17 3 . 6 29 17 2 1 . . . . . . . . . . . . . . . . . . . . . . . . . . . . 13 Cannons 14 | . . . . . 4 . 2 1 . 1 . . . . . . . . . . . . . . . . . . . . . . . . . . 6 AOE 82 | . . 1 . . 7 20 12 6 . 8 . . 4 . . . . . 6 2 . . . . . 4 . 8 . . . . . . . . 4 Classes Destroyed 25 | 3 5 1 . 1 5 3 . 1 . 1 . . 1 . . . . 1 . . . . . . . 1 . 1 . . . . . . . . 1 Worker 41 | 2 2 . . . 7 8 . . . . . 2 . . . . . . 2 . . . 3 2 . . . . . . 3 . 3 . . 2 5 Builder 25 | . 1 . . . 2 3 . . . . . 3 . . . . 1 . 1 . . . 1 5 . 1 . . . . 1 . 6 . . . . Tunneler 8 | 5 1 . . . . . . . . . . . . . . . . . . . . . . . . 1 . . . . . . . . . 1 . Hauler 24 | . 2 . . . 6 2 . . . . . 1 . . . . . . 2 . . . 2 . . . 1 . . . 2 1 5 . . . . Recycler 66 | 1 2 2 . . 10 17 . . . . . 5 . . . . 1 . 1 7 . . . 2 . . . . . . 3 . 6 . 2 3 4 Minesweeper 3 | . . . . . . . . 1 . . . . . . . 1 . . . . . . . . . . 1 . . . . . . . . . . Mechanic 3 | . . . . . 1 . . . . . . . . . . . . . . . . . . 1 . 1 . . . . . . . . . . . Operator 21 | . . . . . 3 1 . . . . . 2 . . . . 3 . 1 1 . 5 1 . . 1 . . . . . . 1 . . 1 1 Watcher 28 | . 3 . . . . 3 . . . . . 4 . . . . . . . 1 . . 2 1 . . . . . . 1 . 7 . . 2 4 Swarmer 68 | . 6 4 . 4 6 . 11 4 . . . . 2 2 . 2 5 . 3 . . . . . . . 2 8 . 4 . . . . . . 5 Cutter 2 | . . . . . . . . . . . . . . . . . . . . . . . . . . 2 . . . . . . . . . . . Grunt 83 | . 11 . . . 24 19 3 4 . . . . 3 . . 4 . . 3 6 . . 2 . . . 4 . . . . . . . . . . Brawler 2 | . . . . . 1 . 1 . . . . . . . . . . . . . . . . . . . . . . . . . . . . . . Duelist 2 | . . . . . . . . . . . . . 1 . . 1 . . . . . . . . . . . . . . . . . . . . . Protector 5 | . . . . . . 4 . . . . . . . . . . . . . 1 . . . . . . . . . . . . . . . . . Sentry 19 | . . . . . 6 . 1 . . . . . . . . . . . 1 4 . 1 1 2 . 1 . . . . . . . . . . 2 Specialist 3 | . . . . . . 3 . . . . . . . . . . . . . . . . . . . . . . . . . . . . . . . Hunter 18 | . . . . . 3 5 . . . . . . . . . . . . . 2 . . . . . 2 . . . . . . . . . . 6 Programmer 24 | . . . . . . 6 . . . . . 1 . . . 1 2 . . 1 . . . 3 . . . . . . . . 2 . . . 8 Behemoth 1 | . . . . . . . . . . . . . . . . . . . . . . . . . . . . . . . . . . . . . 1 M Guard 2 | . . . . . . . . . . . . . . . . . . . . . . . . . . . . . . . . . . . . . 2 Enhanced Grunt 1 | . . . . . . . . . . . . . . . . 1 . . . . . . . . . . . . . . . . . . . . . Combat Programmer 2 | . . . . . . . . . . . . . . . . . . . . . . . . . . . . . . . . . . . . . 2 Zionite 1 | . . 1 . . . . . . . . . . . . . . . . . . . . . . . . . . . . . . . . . . . Z-Light 8 | . . . . . . . . . . 8 . . . . . . . . . . . . . . . . . . . . . . . . . . . Decomposer 4 | . . . . . . . 1 . . . . . . . . . . . . . . . . . . . 3 . . . . . . . . . . Packrat 4 | . . . . . . . . . . . . . 2 1 . . . . . . . . . . . . 1 . . . . . . . . . . Samaritan 1 | . . . . . . . . . . . . . . . . . . . . . . . . . . . . 1 . . . . . . . . . Assembled 2 | . . . . 2 . . . . . . . . . . . . . . . . . . . . . . . . . . . . . . . . . Savage 2 | . . . . . . . 1 . . . . . 1 . . . . . . . . . . . . . . . . . . . . . . . . Martyr 4 | . . . . . . . . . . . . . . . . . . 2 . . . . . . 2 . . . . . . . . . . . . Best Kill Streak 28 | 4 6 4 . 3 11 28 4 4 . 6 . 2 4 1 . 3 6 . 8 4 . 4 7 4 . 4 2 4 . 2 3 1 5 . 1 4 7 Combat Bots Only 14 | . 5 3 . 3 6 14 4 4 . 6 . 1 4 1 . 2 5 . 6 4 . 1 1 2 . 4 2 4 . 2 . . 1 . . . 7 Max Kills in Single Turn 5 | 1 2 2 . 1 2 4 3 3 . 3 . 1 2 1 . 1 1 1 3 2 1 1 1 1 1 2 1 5 . 1 1 1 1 . 1 1 4 Gunslinging 1 | . 1 1 . . . . . . . . . . . . . . . . . . . . . . . . . . . . . . . . . . . Exploded 4 | . . 1 . . 2 3 3 3 . 3 . . 2 . . . . . 3 2 . . . . . 2 . 4 . . . . . . . . 4 Melee 1 | . . . . . . . . . . . . 1 1 1 . 1 1 . 1 1 . 1 1 1 . 1 1 . . 1 . . 1 . . . 1 Uniques/NPCs Destroyed 3 | . . . . . . . . . . 1 . . . . . . . . . . 1 . . . . . . . . . . . . . . . 1 Z-Imprinter (-7/Deep Caves) A7 (-5/Cetus) MAIN.C Shell (-1/Command) Combat | -11 -10 -10 -10 -9 -8 -7 -7 -7 -7 -7 -6 -6 -6 -6 -6 -5 -5 -5 -5 -5 -5 -5 -5 -4 -4 -4 -4 -4 -4 -3 -3 -3 -2 -2 -2 -1 -1 -------- Run | Jun Mat Min Exi Min Mat Fac Low Low Zio Dee Pro Fac Low Low Dat Pro Fac Was Fac Ext Cet Arc Hub Fac Was Fac Upp Upp Zhi Pro Res Qua Res Tes Sec Acc Com Damage Taken 21293 | . 490 82 . 184 3218 3026 992 137 . 1403 75 . 206 130 . 460 230 . 51 823 96 54 395 444 14 97 222 109 . 91 159 78 511 24 864 225 6403 Core 3929 | . 158 . . 30 433 206 176 11 . 235 5 . . 46 . 43 33 . . 107 15 18 77 69 . 17 40 . . . 38 30 . . 650 176 1316 Absorbed by Shields 5175 | . . . . . . . . 52 . 54 . . 36 33 . 135 . . 18 57 25 19 143 159 5 35 83 12 . . . . . . . 50 4259 Reduced by Siege Mode 149 | . . . . . . . . . . . . . . . . . . . . . . . . . . . . . . . . . . . . . 149 Redirected to Shielding 95 | . . . . . . . . . . . . . . . . . . . . . . . . 29 . . 66 . . . . . . . . . . Regen/Repaired (Parts) 2916 | . 139 . . . . . . . . . . . . . . . 98 179 . 400 39 3 9 93 118 . . . . . . . 260 24 38 39 1477 Core Remaining (%) 61 | 100 . . . 24 21 . . . . . 9 . . . . 89 . . . . . . 75 . . . . . . 89 . 94 . . 55 . . Volleys Fired 1142 | 19 45 6 . 16 208 163 137 30 2 13 5 9 7 14 . 8 7 . 2 6 . . 7 11 . 12 . 4 . 2 12 3 52 7 10 24 301 Largest 2 | 2 2 2 . 2 2 2 2 2 2 2 1 1 1 1 . 1 1 . 1 1 . . 1 1 . 1 . 1 . 1 1 1 1 1 1 1 1 Hottest 170 | 40 90 85 . 100 100 170 170 170 115 160 90 90 90 90 . 90 90 . 36 36 . . 90 90 . 90 . 49 . 90 94 90 120 120 120 120 120 Shots Fired 1593 | 38 91 17 . 29 393 294 158 41 4 26 5 9 7 14 . 8 7 . 2 6 . . 7 11 . 12 . 4 . 2 12 3 52 7 10 24 300 Gun 1029 | 38 91 17 . 26 342 252 23 11 2 15 . . . . . . . . . . . . . . . . . . . . . . . 1 . . 211 Cannon 460 | . . . . . 32 15 127 24 2 1 5 9 5 14 . 8 7 . . . . . 7 11 . 6 . . . 2 12 3 52 6 10 24 78 Launcher 89 | . . . . . 19 27 8 6 . . . . . . . . . . 2 6 . . . . . 6 . 4 . . . . . . . . 11 Special 15 | . . . . 3 . . . . . 10 . . 2 . . . . . . . . . . . . . . . . . . . . . . . . Kinetic 559 | 38 . . . 13 244 249 2 5 2 5 . . . . . . . . . . . . . . . . . . . . . . . . . . 1 Thermal 796 | . . . . 16 124 18 148 30 2 11 5 9 5 14 . 8 7 . . . . . 7 11 . 6 . . . 2 8 3 52 7 10 24 269 Explosive 100 | . . . . . 19 26 8 6 . 10 . . 2 . . . . . 2 6 . . . . . 6 . 4 . . . . . . . . 11 Electromagnetic 138 | . 91 17 . . 6 1 . . . . . . . . . . . . . . . . . . . . . . . . 4 . . . . . 19 Robot Hit Streak 29 | 7 10 9 . 4 23 9 8 8 . 6 . . 7 . . 2 . . . 5 . . . . . . . . . . 1 . 3 . . . 29 Robot Miss Streak 7 | 4 7 1 . 2 7 5 4 4 . 2 . . . . . 1 . . . 1 . . . . . . . . . . 2 . 4 . . . 3 Penetration Max . | . . . . . . . . . . . . . . . . . . . . . . . . . . . . . . . . . . . . . . Secondary Targets 11 | . 2 1 . 1 2 5 . . . . . . . . . . . . . . . . . . . . . . . . . . . . . . . Max Gunslinging Chain 1 | . 1 1 . 1 1 1 . . . . . . . . . . . . . . . . . . . . . . . . . . . . . . . Capacitor 280 | . . . . . . . . . . . . . . . . . . . . . . . . . . . . . . . 4 . . . . . 276 Shots Hit Robots 1190 | 22 73 15 . 13 243 181 21 11 . 17 . 36 21 7 . 33 15 6 17 45 14 13 28 38 4 5 30 . 3 4 13 1 49 2 3 10 197 Core Hits 684 | 10 44 9 . 7 114 135 25 16 . 18 . 15 14 4 . 13 10 2 13 32 4 6 11 13 2 7 16 7 2 4 8 1 22 . . 4 96 Critical Kills 8 | . . . . . 1 1 . 1 . . . . . . . . . . . . . . . . . . . . . . . . . . . . 5 Critical Parts Destroyed 11 | . . . . . 1 2 . . . 1 . . . . . . . . . . . . . . . . . . . . . . . . . . 7 Critical Strikes 62 | . . . . 2 17 3 . 1 . 2 . . 2 . . 5 . . 1 3 . . 2 2 . . 5 . . . . . 1 . . . 16 Burn 17 | . . . . 2 15 . . . . . . . . . . . . . . . . . . . . . . . . . . . . . . . . Meltdown 1 | . . . . . . . . . . . . . . . . . . . . . . . . . . . . . . . . . . . . . 1 Destroy 22 | . . . . . 2 3 . 1 . 1 . . . . . . . . . . . . . . . . . . . . . . . . . . 15 Sever 22 | . . . . . . . . . . 1 . . 2 . . 5 . . 1 3 . . 2 2 . . 5 . . . . . 1 . . . . Melee Attacks 903 | . . . . . . 4 3 . 10 3 7 83 38 48 . 41 34 6 35 52 14 13 42 79 4 12 50 6 3 10 34 7 74 4 4 16 167 Impact 9 | . . . . . . . . . 9 . . . . . . . . . . . . . . . . . . . . . . . . . . . . Slashing 851 | . . . . . . 4 3 . 1 3 7 64 30 39 . 34 34 6 35 52 14 13 42 79 4 12 50 6 3 10 34 7 74 4 4 16 167 Piercing 43 | . . . . . . . . . . . . 19 8 9 . 7 . . . . . . . . . . . . . . . . . . . . . Sneak Attacks 160 | . . . . . . . 3 . . . . 19 4 1 . 1 2 6 9 11 12 7 9 13 4 3 6 . . . 9 1 22 1 2 8 7 Combat Hostiles 2 | . . . . . . . . . . . . . . . . . . . . 1 . . . 1 . . . . . . . . . . . . . Follow-up Attacks 50 | . . . . . . . . . . . . 6 1 1 . 4 1 2 1 6 4 2 5 6 1 . 1 . . . . . . . . . 9 Damage Inflicted 69431 | 230 1078 242 . 271 5339 6751 1824 877 . 1711 . 2506 1850 489 . 1547 887 510 1634 3295 870 1039 1690 2354 352 1233 1794 1137 345 208 1112 108 6339 184 265 1656 17704 Guns 13160 | 230 1030 154 . 264 3615 2877 210 127 . 203 . . . . . . . . . . . . . . . . . . . . . . . . . . 4450 Cannons 3015 | . . . . . 449 205 297 38 . 35 . . . . . 78 . . . . . . . . . . . . . . 42 . 251 . . . 1620 Explosions 13914 | . 44 66 . . 1234 3651 1202 712 . 1173 . . 601 . . 103 . . 432 718 . . . . . 793 . 1137 . . . . . . . . 2048 Melee 38952 | . . . . . . . 95 . . 92 . 2506 1179 489 . 1366 887 510 1202 2577 870 1039 1690 2354 352 440 1794 . 345 208 1070 108 6088 184 265 1656 9586 Ramming 112 | . 4 22 . 7 41 18 20 . . . . . . . . . . . . . . . . . . . . . . . . . . . . . . Kinetic 5669 | 230 . . . 62 2441 2827 18 30 . 36 . . . . . . . . . . . . . . . . . . . . . . . . . . 25 Thermal 9480 | . 44 66 . 202 1580 523 489 135 . 202 . . . . . 181 . . . . . . . . . . . 58 . . . . 251 . . . 5749 Explosive 13311 | . . . . . 1222 3331 1202 712 . 1173 . . 601 . . . . . 432 718 . . . . . 793 . 1079 . . . . . . . . 2048 Electromagnetic 1629 | . 1030 154 . . 55 52 . . . . . . . . . . . . . . . . . . . . . . . . 42 . . . . . 296 Impact . | . . . . . . . . . . . . . . . . . . . . . . . . . . . . . . . . . . . . . . Slashing 38814 | . . . . . . . 95 . . 300 . 2233 1190 489 . 1282 887 510 1202 2577 870 1039 1690 2354 352 440 1794 . 345 208 1070 108 6088 184 265 1656 9586 Piercing 416 | . . . . . . . . . . . . 273 59 . . 84 . . . . . . . . . . . . . . . . . . . . . Highest Corruption 66 | . 3 3 3 8 . 7 11 11 11 . . 1 . . . . . . . 1 . 1 1 2 2 2 . . . . . . 5 1 1 . 66 Average Corruption 5 | . 2 3 3 3 . 2 7 11 11 . . 1 . . . . . . . 1 . 1 1 1 2 1 . . . . . . 2 1 1 . 14 Corruption Purged 9 | . . . . . . . . . . . . 1 . . . . . . . 1 . 1 . . . 2 . . . . . . 4 . . . . Corruption Blocked 2 | . . . . . . . . . . . . 2 . . . . . . . . . . . . . . . . . . . . . . . . . Effects 331 | . 12 40 16 14 . 14 86 69 3 . . 4 . . . . . . . . . . . 4 4 . . . . . . . 11 1 1 . 52 Message Errors 73 | . 2 10 1 2 . 4 19 17 1 . . . . . . . . . . . . . . 1 . . . . . . . . 3 1 . . 12 Matter Fused 78 | . 2 9 8 3 . 3 21 13 1 . . 1 . . . . . . . . . . . 1 . . . . . . . . 3 . 1 . 12 Heat Flow Errors 42 | . . 4 2 4 . 2 12 9 . . . 1 . . . . . . . . . . . . 1 . . . . . . . 2 . . . 5 Energy Discharges 37 | . 1 5 1 2 . 2 10 8 . . . 1 . . . . . . . . . . . . 1 . . . . . . . . . . . 6 Parts Rejected 5 | . . 1 . . . . 1 . . . . . . . . . . . . . . . . 1 . . . . . . . . . . . . 2 Parts Fused 3 | . . . . . . . 2 . . . . . . . . . . . . . . . . . 1 . . . . . . . . . . . . Data Loss (minor) 41 | . 4 5 2 . . 1 9 9 1 . . 1 . . . . . . . . . . . 1 . . . . . . . . 3 . . . 5 Data Loss (major) 19 | . 1 1 2 2 . . 1 8 . . . . . . . . . . . . . . . . 1 . . . . . . . . . . . 3 Misfires 17 | . 1 5 . . . . 6 5 . . . . . . . . . . . . . . . . . . . . . . . . . . . . . Alerts 4 | . 1 . . 1 . . 2 . . . . . . . . . . . . . . . . . . . . . . . . . . . . . . Misdirections 6 | . . . . . . . . . . . . . . . . . . . . . . . . . . . . . . . . . . . . . 6 Weapon Failures 6 | . . . . . . 2 3 . . . . . . . . . . . . . . . . . . . . . . . . . . . . . 1 Overload Shots . | . . . . . . . . . . . . . . . . . . . . . . . . . . . . . . . . . . . . . . Overflow Damage 8224 | . 34 16 . . 34 36 78 21 . 22 . 626 138 127 . 138 127 37 227 428 89 253 242 490 52 219 92 276 120 . 97 . 1986 . 150 667 1402 Projectiles 134 | . . . . . . 9 . . . . . . . . . . . . . . . . . . . . . . . . . . 29 . . . 96 Explosions 887 | . 34 16 . . 34 27 78 21 . 22 . . . . . . . . 27 22 . . . . . 31 . 276 . . . . . . . . 299 Melee 7203 | . . . . . . . . . . . . 626 138 127 . 138 127 37 200 406 89 253 242 490 52 188 92 . 120 . 97 . 1957 . 150 667 1007 Knockbacks 8 | . . . . . 7 1 . . . . . . . . . . . . . . . . . . . . . . . . . . . . . . . Impact 1 | . . . . . . 1 . . . . . . . . . . . . . . . . . . . . . . . . . . . . . . . Kinetic 7 | . . . . . 7 . . . . . . . . . . . . . . . . . . . . . . . . . . . . . . . . Secondary . | . . . . . . . . . . . . . . . . . . . . . . . . . . . . . . . . . . . . . . Self-Inflicted Damage 349 | . 40 34 . . 29 . 99 . . . . . . . . . . . . 56 . . . . . . . 91 . . . . . . . . . Shots 8 | . 1 1 . . 1 . 3 . . . . . . . . . . . . 1 . . . . . . . 1 . . . . . . . . . Rammed 14 | . 1 6 . . 4 3 . . . . . . . . . . . . . . . . . . . . . . . . . . . . . . . Targets Rammed 21 | . 2 7 . 3 4 3 2 . . . . . . . . . . . . . . . . . . . . . . . . . . . . . . Kicked 5 | . . 1 . 3 . . 1 . . . . . . . . . . . . . . . . . . . . . . . . . . . . . . Crushed 2 | . 1 . . . . . 1 . . . . . . . . . . . . . . . . . . . . . . . . . . . . . . Highest Temperature 350 | . 245 232 167 278 336 321 350 243 180 285 110 213 138 186 56 150 120 . 7 47 . . 162 3 79 . 104 159 73 20 136 . 188 181 . 16 174 Average Temperature 53 | . 66 64 87 83 87 79 81 70 100 122 38 58 38 31 29 37 19 . 6 26 . . 60 3 57 . 40 50 33 15 26 . 29 69 . 12 50 Received Heat Transfer 3392 | . 114 . . . 1296 762 54 36 . 387 12 . 30 . . 117 . . 12 190 . 6 60 24 . 6 75 . . 9 . . 18 . 36 8 140 Effects 11 | . . . . . 5 5 . . . 1 . . . . . . . . . . . . . . . . . . . . . . . . . . . Shutdowns 1 | . . . . . 1 . . . . . . . . . . . . . . . . . . . . . . . . . . . . . . . . Energy Bleed 1 | . . . . . . . . . . 1 . . . . . . . . . . . . . . . . . . . . . . . . . . . Interference 9 | . . . . . 4 5 . . . . . . . . . . . . . . . . . . . . . . . . . . . . . . . Siege Activations 2 | . . . . . . . . . . . . . . . . . . . . . . . . . . . . . . . . . . . . . 2 Total Turns 57 | . . . . . . . . . . . . . . . . . . . . . . . . . . . . . . . . . . . . . 57 Longest Duration 41 | . . . . . . . . . . . . . . . . . . . . . . . . . . . . . . . . . . . . . 41 Robots Corrupted 2 | . . . . . . . . . . . . . . . . . . . . . . . . . . . . . . . . . . . . . 2 Combat Hostiles 2 | . . . . . . . . . . . . . . . . . . . . . . . . . . . . . . . . . . . . . 2 Parts Fried 11 | . 5 . . . . . . . . . . . . . . . . . . . . . . . . . . . . . . . . . . . 6 Impact Corruptions 1 | . . . . . . . 1 . . . . . . . . . . . . . . . . . . . . . . . . . . . . . . Robots Melted 1 | . . . . . . . . . . . . . . . . . . . . . . . . . . . . . . . . . . . . . 1 Combat Hostiles 1 | . . . . . . . . . . . . . . . . . . . . . . . . . . . . . . . . . . . . . 1 Parts Melted 19 | . . . . 2 6 . . . . 6 . . . . . . . . 1 . . . 1 . . 1 . . . . . . . . . . 2 Heat Transferred 11830 | . 100 100 . 481 4181 274 296 148 . 63 . . . . . 100 . . . . . . . . . . . 50 . . . . 222 . . . 5815 Parts Sabotaged . | . . . . . . . . . . . . . . . . . . . . . . . . . . . . . . . . . . . . . . Parts Stolen . | . . . . . . . . . . . . . . . . . . . . . . . . . . . . . . . . . . . . . . Parts Stripped . | . . . . . . . . . . . . . . . . . . . . . . . . . . . . . . . . . . . . . . Power Chain Reactions 6 | . 2 2 . . . . . . . . . . . . . 1 . . . . . . . . . . . 1 . . . . . . . . . Missiles Intercepted 1 | . . . . . . . . . . . . . . . . . . . . . . . . . . . . . . . . . . . . . 1 Alert | -11 -10 -10 -10 -9 -8 -7 -7 -7 -7 -7 -6 -6 -6 -6 -6 -5 -5 -5 -5 -5 -5 -5 -5 -4 -4 -4 -4 -4 -4 -3 -3 -3 -2 -2 -2 -1 -1 ------- Run | Jun Mat Min Exi Min Mat Fac Low Low Zio Dee Pro Fac Low Low Dat Pro Fac Was Fac Ext Cet Arc Hub Fac Was Fac Upp Upp Zhi Pro Res Qua Res Tes Sec Acc Com Peak Influence 1846 | 40 364 103 . 150 921 1022 . . . . . 419 . . . . 444 207 878 922 739 556 1070 489 195 483 . . . . 359 1846 1387 1792 1838 1451 1610 Initial 1102 | . 26 33 . . . 418 . . . . . 328 . . . . 81 88 144 331 516 295 . 357 85 136 . . . . 70 201 1100 599 1100 1102 800 Average 412 | 23 164 41 . 22 387 550 . . . . . 138 . . . . 217 174 563 567 656 123 572 256 154 293 . . . . 173 1660 1171 1686 1716 1307 1173 Maximum Alert Level 5 | . 1 . . . 3 3 . . . . . 2 . . . . 2 1 3 3 3 2 3 2 . 2 . . . . 1 5 4 5 5 4 5 Low Security (%) 42 | 100 66 100 . 100 18 . . . . . . 75 . . . . 55 42 3 . . 69 21 35 100 16 . . . . 64 . . . . . . Level 1 19 | . 33 . . . 48 23 . . . . . 23 . . . . 32 57 30 5 . 20 1 52 . 59 . . . . 35 1 . . . . . Level 2 16 | . . . . . 13 59 . . . . . 1 . . . . 12 . 42 80 75 9 36 11 . 24 . . . . . . . . . . . Level 3 9 | . . . . . 19 17 . . . . . . . . . . . . 23 14 24 . 40 . . . . . . . . . 17 . . . 35 Level 4 10 | . . . . . . . . . . . . . . . . . . . . . . . . . . . . . . . . . 82 . . 100 62 Level 5 . | . . . . . . . . . . . . . . . . . . . . . . . . . . . . . . . . . . . . . 2 High Security . | . . . . . . . . . . . . . . . . . . . . . . . . . . . . . . . . . . . . . . Max Security 1 | . . . . . . . . . . . . . . . . . . . . . . . . . . . . . . . . 98 . 99 99 . . Squads Dispatched 95 | . 3 . . . 9 11 . . . . . 6 . . . . 3 . 7 3 . . 10 8 . 7 . . . 1 . . 4 6 6 1 10 Investigation 31 | . 3 . . . 6 2 . . . . . 3 . . . . 3 . 5 1 . . 4 2 . 2 . . . . . . . . . . . Extermination 11 | . . . . . . 2 . . . . . 1 . . . . . . . . . . . 2 . 1 . . . . . . 1 . . . 4 Reinforcement 24 | . . . . . 3 6 . . . . . 2 . . . . . . . 1 . . 4 4 . 3 . . . . . . 1 . . . . Assault 28 | . . . . . . 1 . . . . . . . . . . . . 2 1 . . 2 . . . . . . 1 . . 2 6 6 1 6 Garrison 1 | . . . . . . . . . . . . . . . . . . . . . . . . . . 1 . . . . . . . . . . . Intercept . | . . . . . . . . . . . . . . . . . . . . . . . . . . . . . . . . . . . . . . Searches Triggered 1 | . . . . . . . . . . . . 1 . . . . . . . . . . . . . . . . . . . . . . . . . Data Miner Redirects 19 | . . . . . . . . . . . . . . . . . 1 . 4 . . . 4 2 . 1 . . . . . . 2 . . . 5 Construction Impeded 5 | . . . . . 1 4 . . . . . . . . . . . . . . . . . . . . . . . . . . . . . . . Haulers Reinforced 6 | . . . . . . 2 . . . . . 1 . . . . . . . . . . 1 1 . . . . . . . . 1 . . . . Active Scanning Responses . | . . . . . . . . . . . . . . . . . . . . . . . . . . . . . . . . . . . . . . Cargo Convoy Interrupts 2 | . . . . . . 1 . . . . . 1 . . . . . . . . . . . . . . . . . . . . . . . . . Stealth | -11 -10 -10 -10 -9 -8 -7 -7 -7 -7 -7 -6 -6 -6 -6 -6 -5 -5 -5 -5 -5 -5 -5 -5 -4 -4 -4 -4 -4 -4 -3 -3 -3 -2 -2 -2 -1 -1 --------- Run | Jun Mat Min Exi Min Mat Fac Low Low Zio Dee Pro Fac Low Low Dat Pro Fac Was Fac Ext Cet Arc Hub Fac Was Fac Upp Upp Zhi Pro Res Qua Res Tes Sec Acc Com Distress Signals 17 | . 2 . . . 5 2 . . . . . . . . . . 1 . . 1 1 . 1 . . . . . . . . 2 1 1 . . . Communications Jammed 168 | . . . . . . . . . . . . . . . . . . . 1 24 28 . 51 8 . . . . . . 4 4 14 7 2 . 25 Distress Signals 167 | . . . . . . . . . . . . . . . . . . . 1 24 28 . 50 8 . . . . . . 4 4 14 7 2 . 25 Times Spotted 474 | . 26 6 . 8 59 46 18 8 . 9 5 9 10 3 . 11 10 5 13 34 7 6 27 11 5 7 9 5 . 12 10 12 17 8 14 11 33 Peak Tracking Total 12 | . 5 3 . 3 6 12 4 4 . 5 3 2 4 3 . 5 6 4 7 7 5 2 6 7 1 3 2 2 . 5 4 8 4 11 12 4 10 Tactical Retreats 51 | . 2 . . 1 4 . . . . . 2 . 3 1 . 2 1 . . . . . 2 3 . . 2 1 . 1 2 2 4 2 4 6 6 Traps | -11 -10 -10 -10 -9 -8 -7 -7 -7 -7 -7 -6 -6 -6 -6 -6 -5 -5 -5 -5 -5 -5 -5 -5 -4 -4 -4 -4 -4 -4 -3 -3 -3 -2 -2 -2 -1 -1 ------- Run | Jun Mat Min Exi Min Mat Fac Low Low Zio Dee Pro Fac Low Low Dat Pro Fac Was Fac Ext Cet Arc Hub Fac Was Fac Upp Upp Zhi Pro Res Qua Res Tes Sec Acc Com Traps Triggered 24 | . 5 . . . 3 3 . . . . . . . . . . 1 . . 1 . . . 1 . . . . . . . . 2 2 3 2 1 Indirectly . | . . . . . . . . . . . . . . . . . . . . . . . . . . . . . . . . . . . . . . Trap Hack Attempts . | . . . . . . . . . . . . . . . . . . . . . . . . . . . . . . . . . . . . . . Triggered . | . . . . . . . . . . . . . . . . . . . . . . . . . . . . . . . . . . . . . . Disarmed . | . . . . . . . . . . . . . . . . . . . . . . . . . . . . . . . . . . . . . . Reprogrammed . | . . . . . . . . . . . . . . . . . . . . . . . . . . . . . . . . . . . . . . Reused . | . . . . . . . . . . . . . . . . . . . . . . . . . . . . . . . . . . . . . . Traps Extracted . | . . . . . . . . . . . . . . . . . . . . . . . . . . . . . . . . . . . . . . Installed . | . . . . . . . . . . . . . . . . . . . . . . . . . . . . . . . . . . . . . . Triggered 8 | . . . . . . . . 3 . . 2 2 . . . 1 . . . . . . . . . . . . . . . . . . . . . Machines | -11 -10 -10 -10 -9 -8 -7 -7 -7 -7 -7 -6 -6 -6 -6 -6 -5 -5 -5 -5 -5 -5 -5 -5 -4 -4 -4 -4 -4 -4 -3 -3 -3 -2 -2 -2 -1 -1 ---------- Run | Jun Mat Min Exi Min Mat Fac Low Low Zio Dee Pro Fac Low Low Dat Pro Fac Was Fac Ext Cet Arc Hub Fac Was Fac Upp Upp Zhi Pro Res Qua Res Tes Sec Acc Com Machines Disabled 34 | . . 1 . 1 6 5 1 . . 1 . 2 . . . . 1 . 1 1 . 1 3 . . . . . . . . 1 . 4 2 1 2 Max in Single Turn 2 | . . 1 . 1 2 1 1 . . 1 . 1 . . . . 1 . 1 . . . . . . . . . . . . 1 . 1 1 1 1 Garrison Access 7 | . . . . . . 1 . . . . . 1 . . . . . . 1 . . . 2 . . . . . . . 1 . . . . 1 . Network Hub 3 | . . . . . . . . . . . . . . . . . . . . . . . 3 . . . . . . . . . . . . . . Machines Repaired 1 | . . . . . . . . . . . . . . . . . . . . . . . 1 . . . . . . . . . . . . . . Machines Sabotaged . | . . . . . . . . . . . . . . . . . . . . . . . . . . . . . . . . . . . . . . Overloaded Fab Kills . | . . . . . . . . . . . . . . . . . . . . . . . . . . . . . . . . . . . . . . Hacking | -11 -10 -10 -10 -9 -8 -7 -7 -7 -7 -7 -6 -6 -6 -6 -6 -5 -5 -5 -5 -5 -5 -5 -5 -4 -4 -4 -4 -4 -4 -3 -3 -3 -2 -2 -2 -1 -1 --------- Run | Jun Mat Min Exi Min Mat Fac Low Low Zio Dee Pro Fac Low Low Dat Pro Fac Was Fac Ext Cet Arc Hub Fac Was Fac Upp Upp Zhi Pro Res Qua Res Tes Sec Acc Com Machines Accessed 141 | . 11 1 2 1 11 4 . . . . . 19 1 1 4 . 6 . 8 9 1 . 7 12 . 5 . . 5 . 7 . 9 . . 7 10 Terminals 75 | . 8 1 . 1 6 1 . . . . . 8 . . . . 3 . 5 8 1 . 6 4 . 2 . . . . 2 . 6 . . 4 9 Fabricators 13 | . . . . . . 2 . . . . . 4 . . . . . . 2 . . . . 3 . 1 . . . . . . . . . 1 . Repair Stations 14 | . 1 . . . 2 . . . . . . 3 . . . . 1 . . 1 . . . 1 . 1 . . . . 2 . . . . 1 1 Recycling Units 9 | . 2 . . . 2 . . . . . . 2 . . . . . . . . . . . 2 . . . . . . . . 1 . . . . Scanalyzers 10 | . . . . . 1 . . . . . . 1 . . . . 2 . . . . . . 2 . . . . . . 2 . 2 . . . . Garrison Access 7 | . . . . . . 1 . . . . . 1 . . . . . . 1 . . . 1 . . 1 . . . . 1 . . . . 1 . Total Hacks 491 | . 31 3 2 4 34 10 . . . . . 42 1 1 26 . 22 . 26 16 1 . 20 74 . 34 . . 17 . 25 . 61 . . 16 25 Successful 231 | . 10 2 2 2 18 4 . . . . . 15 1 1 26 . 8 . 11 3 1 . 11 42 . 19 . . 17 . 7 . 22 . . 3 6 Failed 258 | . 20 1 . 1 16 6 . . . . . 27 . . . . 14 . 15 13 . . 9 32 . 15 . . . . 18 . 39 . . 13 19 Catastrophic 44 | . 5 . . . 1 1 . . . . . 6 . . . . 2 . 2 4 . . . 5 . 1 . . . . 2 . 6 . . 2 7 Database Lockouts 2 | . 1 . . 1 . . . . . . . . . . . . . . . . . . . . . . . . . . . . . . . . . Manual 166 | . 13 3 1 3 10 3 . . . . . 9 . . . . 7 . 16 10 1 . 8 25 . 21 . . . . 5 . 19 . . . 12 Terminals 261 | . 23 3 . 4 19 3 . . . . . 15 . . . . 7 . 11 13 1 . 19 35 . 17 . . . . 8 . 46 . . 13 24 Fabricators 51 | . . . . . . 4 . . . . . 10 . . . . . . 13 . . . . 11 . 12 . . . . . . . . . 1 . Repair Stations 50 | . 3 . . . 6 . . . . . . 8 . . . . 4 . . 3 . . . 8 . 2 . . . . 14 . . . . 1 1 Recycling Units 31 | . 5 . . . 4 . . . . . . 5 . . . . . . . . . . . 9 . . . . . . . . 8 . . . . Scanalyzers 39 | . . . . . 5 . . . . . . 3 . . . . 11 . . . . . . 11 . . . . . . 2 . 7 . . . . Garrison Access 12 | . . . . . . 3 . . . . . 1 . . . . . . 2 . . . 1 . . 3 . . . . 1 . . . . 1 . Terminal Hacks 126 | . 7 2 2 2 9 1 . . . . . 5 1 1 26 . . . 2 2 1 . 7 16 . 7 . . 17 . 2 . 12 . . 2 2 Record 13 | . . . 1 . . . . . . . . . . . 7 . . . . . . . . . . . . . 5 . . . . . . . . Part Schematic 14 | . . . . . . . . . . . . . . . 10 . . . . . . . . . . . . . 4 . . . . . . . . Robot Schematic 6 | . . . . . . . . . . . . . . . 6 . . . . . . . . . . . . . . . . . . . . . . Robot Analysis 10 | . 2 2 . 1 . . . . . . . 1 . . . . . . . . . . . . . . . . 4 . . . . . . . . Prototype ID Bank 20 | . 4 . . . 3 . . . . . . . . . 3 . . . . . . . . 1 . . . . 4 . 1 . 4 . . . . Open Door 4 | . . . . . . . . . . . . . 1 1 . . . . . . 1 . . . . . . . . . . . . . . . 1 Branch Access Points 9 | . . . . . 1 1 . . . . . 1 . . . . . . 1 . . . . 1 . 1 . . . . 1 . 1 . . 1 . Machine Index 1 | . . . . . . . . . . . . . . . . . . . . . . . . . . . . . . . . . 1 . . . . Terminal Index 4 | . . . . . 1 . . . . . . . . . . . . . . . . . . 1 . 1 . . . . . . . . . . 1 Fabricator Index 1 | . . . . . . . . . . . . . . . . . . . . . . . . . . 1 . . . . . . . . . . . Repair Station Index 1 | . . . . . . . . . . . . . . . . . . . . . . . . 1 . . . . . . . . . . . . . Recycling Unit Index 1 | . . . . . 1 . . . . . . . . . . . . . . . . . . . . . . . . . . . . . . . . Scanalyzer Index 1 | . . . . . . . . . . . . . . . . . . . . . . . . 1 . . . . . . . . . . . . . Garrison Index 1 | . . . . . . . . . . . . . . . . . . . . . . . . 1 . . . . . . . . . . . . . Alert Level 5 | . . . . . 1 . . . . . . 1 . . . . . . . 1 . . 1 1 . . . . . . . . . . . . . Unreport Threat 10 | . . . . . . . . . . . . . . . . . . . . . . . 4 3 . . . . . . . . 3 . . . . Locate Traps 1 | . . . . . . . . . . . . 1 . . . . . . . . . . . . . . . . . . . . . . . . . Maintenance Status 2 | . . . . . . . . . . . . . . . . . . . . . . . . 1 . 1 . . . . . . . . . . . Patrol Status 1 | . . . . . . . . . . . . . . . . . . . . . . . . . . . . . . . . . 1 . . . . Transport Status 2 | . . . . . 1 . . . . . . . . . . . . . . . . . . . . 1 . . . . . . . . . . . Hauler Manifests 7 | . . . . . 1 . . . . . . 1 . . . . . . 1 . . . . 1 . 1 . . . . . . 1 . . 1 . Registered Components 1 | . . . . . . . . . . . . . . . . . . . . . . . . 1 . . . . . . . . . . . . . Registered Prototypes 1 | . . . . . . . . . . . . . . . . . . . . . . . . . . . . . . . . . 1 . . . . Zone Layout 9 | . 1 . . 1 . . . . . . . . . . . . . . . 1 . . 2 3 . 1 . . . . . . . . . . . EX-Prototype ID Bank 1 | . . . 1 . . . . . . . . . . . . . . . . . . . . . . . . . . . . . . . . . . Fabricator Hacks 18 | . . . . . . 2 . . . . . 3 . . . . . . 4 . . . . 4 . 5 . . . . . . . . . . . Network Status 5 | . . . . . . . . . . . . 1 . . . . . . 1 . . . . 1 . 2 . . . . . . . . . . . Load Schematic 6 | . . . . . . 1 . . . . . 1 . . . . . . 2 . . . . 1 . 1 . . . . . . . . . . . Build 7 | . . . . . . 1 . . . . . 1 . . . . . . 1 . . . . 2 . 2 . . . . . . . . . . . Repair Station Hacks 15 | . 2 . . . 1 . . . . . . 1 . . . . 2 . . 1 . . . 4 . 1 . . . . 2 . . . . . 1 Scan Component 10 | . 1 . . . 1 . . . . . . 1 . . . . 1 . . 1 . . . 2 . 1 . . . . 2 . . . . . . Repair 4 | . 1 . . . . . . . . . . . . . . . 1 . . . . . . 2 . . . . . . . . . . . . . Refit 1 | . . . . . . . . . . . . . . . . . . . . . . . . . . . . . . . . . . . . . 1 Recycling Unit Hacks 4 | . . . . . . . . . . . . 1 . . . . . . . . . . . 2 . . . . . . . . 1 . . . . Retrieve Components 4 | . . . . . . . . . . . . 1 . . . . . . . . . . . 2 . . . . . . . . 1 . . . . Scanalyzer 24 | . . . . . 4 . . . . . . 2 . . . . 6 . . . . . . 6 . . . . . . 2 . 4 . . . . Insert Component 15 | . . . . . 2 . . . . . . 1 . . . . 3 . . . . . . 3 . . . . . . 2 . 4 . . . . Analyze 9 | . . . . . 2 . . . . . . 1 . . . . 3 . . . . . . 3 . . . . . . . . . . . . . Garrison Access Hacks 6 | . . . . . . 1 . . . . . 1 . . . . . . 1 . . . 1 . . . . . . . 1 . . . . 1 . Seal Access 6 | . . . . . . 1 . . . . . 1 . . . . . . 1 . . . 1 . . . . . . . 1 . . . . 1 . Unauthorized Hacks 38 | . 1 . . . 4 . . . . . . 2 . . . . . . 4 . . . 3 10 . 6 . . . . . . 5 . . . 3 Terminals 16 | . . . . . 1 . . . . . . 1 . . . . . . 1 . . . 3 3 . 1 . . . . . . 3 . . . 3 Track 1 | . . . . . . . . . . . . . . . . . . . . . . . . . . . . . . . . . . . . . 1 Assimilate 6 | . . . . . 1 . . . . . . 1 . . . . . . . . . . 1 1 . . . . . . . . 2 . . . . Botnet 4 | . . . . . . . . . . . . . . . . . . . . . . . . 1 . . . . . . . . 1 . . . 2 Operators 3 | . . . . . . . . . . . . . . . . . . . 1 . . . . 1 . 1 . . . . . . . . . . . Sabotage 2 | . . . . . . . . . . . . . . . . . . . . . . . 2 . . . . . . . . . . . . . . Fabricators 8 | . . . . . . . . . . . . 1 . . . . . . 3 . . . . 2 . 2 . . . . . . . . . . . Prioritize 2 | . . . . . . . . . . . . . . . . . . . 1 . . . . . . 1 . . . . . . . . . . . Liberate 1 | . . . . . . . . . . . . . . . . . . . . . . . . 1 . . . . . . . . . . . . . Haulers 4 | . . . . . . . . . . . . 1 . . . . . . 1 . . . . 1 . 1 . . . . . . . . . . . Recompile 1 | . . . . . . . . . . . . . . . . . . . 1 . . . . . . . . . . . . . . . . . . Repair Stations . | . . . . . . . . . . . . . . . . . . . . . . . . . . . . . . . . . . . . . . Recycling Units 10 | . 1 . . . 2 . . . . . . . . . . . . . . . . . . 5 . . . . . . . . 2 . . . . Reject 3 | . . . . . . . . . . . . . . . . . . . . . . . . 2 . . . . . . . . 1 . . . . Recyclers 1 | . . . . . . . . . . . . . . . . . . . . . . . . 1 . . . . . . . . . . . . . Mask 3 | . . . . . . . . . . . . . . . . . . . . . . . . 2 . . . . . . . . 1 . . . . Tunnel 3 | . 1 . . . 2 . . . . . . . . . . . . . . . . . . . . . . . . . . . . . . . . Scanalyzers 1 | . . . . . 1 . . . . . . . . . . . . . . . . . . . . . . . . . . . . . . . . Extract 1 | . . . . . 1 . . . . . . . . . . . . . . . . . . . . . . . . . . . . . . . . Garrison Access 3 | . . . . . . . . . . . . . . . . . . . . . . . . . . 3 . . . . . . . . . . . Broadcast 1 | . . . . . . . . . . . . . . . . . . . . . . . . . . 1 . . . . . . . . . . . Reprogram 1 | . . . . . . . . . . . . . . . . . . . . . . . . . . 1 . . . . . . . . . . . Watchers 1 | . . . . . . . . . . . . . . . . . . . . . . . . . . 1 . . . . . . . . . . . Data Cores Recovered 5 | . . . . . . . . . . . . 2 . . . . 1 . . . . . . . . 1 . . . . . . 1 . . . . Used 1 | . . . . . . . . . . . . 1 . . . . . . . . . . . . . . . . . . . . . . . . . Hacking Detections 109 | . 11 1 . . 10 4 . . . . . 17 . . . . 6 . 8 9 . . 5 9 . 4 . . . . 4 . 7 . . 6 8 Full Trace Events 22 | . 3 . . . 2 2 . . . . . 3 . . . . 3 . 3 1 . . 2 2 . 1 . . . . . . . . . . . Feedback Events 2 | . . . . . . . . . . . . 1 . . . . . . . 1 . . . . . . . . . . . . . . . . . Corruption 2 | . . . . . . . . . . . . 1 . . . . . . . 1 . . . . . . . . . . . . . . . . . Feedback Blocked . | . . . . . . . . . . . . . . . . . . . . . . . . . . . . . . . . . . . . . . Robot Schematics Acquired 10 | . . . . . . . . . 4 . . . . . 6 . . . . . . . . . . . . . . . . . . . . . . Robots Built . | . . . . . . . . . . . . . . . . . . . . . . . . . . . . . . . . . . . . . . Authchips . | . . . . . . . . . . . . . . . . . . . . . . . . . . . . . . . . . . . . . . Time . | . . . . . . . . . . . . . . . . . . . . . . . . . . . . . . . . . . . . . . Total Robot Build Rating . | . . . . . . . . . . . . . . . . . . . . . . . . . . . . . . . . . . . . . . Part Schematics Acquired 41 | . . . . . 8 . . . 15 . . 1 . . 10 . 1 . . . . . . 2 . . . . 4 . . . . . . . . Parts Built 10 | . . . . . . 2 . . . . . 1 . . . . . . 1 . . . . 3 . 3 . . . . . . . . . . . Authchips . | . . . . . . . . . . . . . . . . . . . . . . . . . . . . . . . . . . . . . . Time 586 | . . . . . . 95 . . . . . 76 . . . . . . 76 . . . . 99 . 240 . . . . . . . . . . . Total Part Build Rating 59 | . . . . . . 10 . . . . . 5 . . . . . . 5 . . . . 20 . 19 . . . . . . . . . . . Parts Repaired 4 | . 1 . . . . . . . . . . . . . . . 1 . . . . . . 2 . . . . . . . . . . . . . Time 142 | . 26 . . . . . . . . . . . . . . . 25 . . . . . . 91 . . . . . . . . . . . . . Parts Recycled . | . . . . . . . . . . . . . . . . . . . . . . . . . . . . . . . . . . . . . . Recycled Matter . | . . . . . . . . . . . . . . . . . . . . . . . . . . . . . . . . . . . . . . Retrieved Matter . | . . . . . . . . . . . . . . . . . . . . . . . . . . . . . . . . . . . . . . Retrieved Components 6 | . . . . . . . . . . . . . . . . . . . . . . . . 5 . . . . . . . . 1 . . . . Parts Scanalyzed 6 | . . . . . 2 . . . . . . 1 . . . . 2 . . . . . . 1 . . . . . . . . . . . . . Part Schematics Acquired 6 | . . . . . 2 . . . . . . 1 . . . . 1 . . . . . . 2 . . . . . . . . . . . . . Parts Damaged . | . . . . . . . . . . . . . . . . . . . . . . . . . . . . . . . . . . . . . . Bothacking | -11 -10 -10 -10 -9 -8 -7 -7 -7 -7 -7 -6 -6 -6 -6 -6 -5 -5 -5 -5 -5 -5 -5 -5 -4 -4 -4 -4 -4 -4 -3 -3 -3 -2 -2 -2 -1 -1 ------------ Run | Jun Mat Min Exi Min Mat Fac Low Low Zio Dee Pro Fac Low Low Dat Pro Fac Was Fac Ext Cet Arc Hub Fac Was Fac Upp Upp Zhi Pro Res Qua Res Tes Sec Acc Com Used RIF Installer . | . . . . . . . . . . . . . . . . . . . . . . . . . . . . . . . . . . . . . . Robots Hacked . | . . . . . . . . . . . . . . . . . . . . . . . . . . . . . . . . . . . . . . Non-combat . | . . . . . . . . . . . . . . . . . . . . . . . . . . . . . . . . . . . . . . Combat . | . . . . . . . . . . . . . . . . . . . . . . . . . . . . . . . . . . . . . . Robot Hacks Applied . | . . . . . . . . . . . . . . . . . . . . . . . . . . . . . . . . . . . . . . Relay Couplers Released 1 | . . . . . . . . . . . . . . . . . . . . . . . 1 . . . . . . . . . . . . . . Machine Destruction 1 | . . . . . . . . . . . . . . . . . . . . . . . 1 . . . . . . . . . . . . . . Fabnet Peak Effective % . | . . . . . . . . . . . . . . . . . . . . . . . . . . . . . . . . . . . . . . Robots Rewired 18 | . . . . . . . . . . . . . . . . . . . . 17 . . . 1 . . . . . . . . . . . . . Allies Hacked 3 | . . . . . . . . . . . . . . . . . . . . . . . . 1 . . . . . . . . 2 . . . . Hacks Repelled . | . . . . . . . . . . . . . . . . . . . . . . . . . . . . . . . . . . . . . . Allies | -11 -10 -10 -10 -9 -8 -7 -7 -7 -7 -7 -6 -6 -6 -6 -6 -5 -5 -5 -5 -5 -5 -5 -5 -4 -4 -4 -4 -4 -4 -3 -3 -3 -2 -2 -2 -1 -1 -------- Run | Jun Mat Min Exi Min Mat Fac Low Low Zio Dee Pro Fac Low Low Dat Pro Fac Was Fac Ext Cet Arc Hub Fac Was Fac Upp Upp Zhi Pro Res Qua Res Tes Sec Acc Com Total Allies 95 | . . 3 . 3 . . . . . . . 1 . . . 1 . 18 . 28 5 . 1 5 19 3 . . . . . . 2 . . . 6 Largest Group 22 | . . 3 . 3 . . . . . . . 1 1 . . 1 . 18 10 18 13 13 13 4 22 14 . . . . . . 2 . . . 6 Highest-Rated Group 788 | . . 84 . 40 . . . . . . . 26 26 . . 96 . 656 406 551 776 719 725 151 788 575 . . . . . . 36 . . . 88 Highest-Rated Ally 159 | . . 31 . 16 . . . . . . . 26 26 . . 96 . 50 46 159 153 96 96 47 50 47 . . . . . . 26 . . . 15 Total Orders 23 | . . . . 2 . . . . . . . 2 . . . . . . . . 1 . 9 9 . . . . . . . . . . . . . STAY 16 | . . . . 2 . . . . . . . 1 . . . . . . . . 1 . 6 6 . . . . . . . . . . . . . ROAM 2 | . . . . . . . . . . . . . . . . . . . . . . . 2 . . . . . . . . . . . . . . FOLLOW 4 | . . . . . . . . . . . . 1 . . . . . . . . . . . 3 . . . . . . . . . . . . . EXPLORE 1 | . . . . . . . . . . . . . . . . . . . . . . . 1 . . . . . . . . . . . . . . Ally Attacks 740 | . . 13 . . . . . . . . . . . . . 5 . 79 74 158 35 22 147 13 103 52 . . . . . . . . . . 39 Total Damage 22639 | . . 190 . . . . . . . . . . . . . 47 . 3785 1918 3279 754 539 3866 261 5607 1781 . . . . . . . . . . 612 Kills 108 | . . 5 . . . . . . . . . . . . . 1 . 12 13 19 7 3 26 3 13 5 . . . . . . . . . . 1 Allies Corrupted 3 | . . . . . . . . . . . . . . . . . . . . . . . 3 . . . . . . . . . . . . . . Allies Melted . | . . . . . . . . . . . . . . . . . . . . . . . . . . . . . . . . . . . . . . Intel | -11 -10 -10 -10 -9 -8 -7 -7 -7 -7 -7 -6 -6 -6 -6 -6 -5 -5 -5 -5 -5 -5 -5 -5 -4 -4 -4 -4 -4 -4 -3 -3 -3 -2 -2 -2 -1 -1 ------- Run | Jun Mat Min Exi Min Mat Fac Low Low Zio Dee Pro Fac Low Low Dat Pro Fac Was Fac Ext Cet Arc Hub Fac Was Fac Upp Upp Zhi Pro Res Qua Res Tes Sec Acc Com Robot Analysis Total 10 | . 2 2 . 1 . . . . . . . 1 . . . . . . . . . . . . . . . . 4 . . . . . . . . Derelict Logs Recovered 15 | . . 1 . 1 . . 2 1 . . 2 . 3 . . 1 . . . . . . . . . . 2 2 . . . . . . . . . Drone Launches 3 | . . . . . . . . . . . . . . . . . . . . . . . 3 . . . . . . . . . . . . . . Drone Recoveries . | . . . . . . . . . . . . . . . . . . . . . . . . . . . . . . . . . . . . . . Exploration | -11 -10 -10 -10 -9 -8 -7 -7 -7 -7 -7 -6 -6 -6 -6 -6 -5 -5 -5 -5 -5 -5 -5 -5 -4 -4 -4 -4 -4 -4 -3 -3 -3 -2 -2 -2 -1 -1 ------------- Run | Jun Mat Min Exi Min Mat Fac Low Low Zio Dee Pro Fac Low Low Dat Pro Fac Was Fac Ext Cet Arc Hub Fac Was Fac Upp Upp Zhi Pro Res Qua Res Tes Sec Acc Com Turns Passed 37014 | 233 1626 1997 670 1028 2327 1888 2720 1925 2323 1331 342 1631 804 863 51 721 433 256 621 1322 232 3939 585 905 212 361 612 476 114 379 324 77 974 168 186 410 1948 Spaces Moved 27744 | 59 655 585 209 329 630 509 933 868 1181 738 418 1867 1037 896 82 789 524 344 676 1063 191 348 772 1172 339 427 914 893 209 725 524 199 1785 490 512 645 3207 Core 299 | 7 3 . . . . . . . . . . . . . . . . . . . . 240 . . . . . . . . . . . . . . 49 Treads 2859 | 52 651 553 209 58 336 509 491 . . . . . . . . . . . . . . . . . . . . . . . . . . . . . . Legs 3288 | . 1 32 . 271 . . 442 868 1181 493 . . . . . . . . . . . . . . . . . . . . . . . . . . . Wheels 289 | . . . . . 289 . . . . . . . . . . . . . . . . . . . . . . . . . . . . . . . . Hover 20951 | . . . . . 5 . . . . 245 418 1867 1037 896 82 789 524 344 676 1063 191 108 772 1172 339 427 914 893 209 725 524 199 1785 490 469 634 3154 Flight . | . . . . . . . . . . . . . . . . . . . . . . . . . . . . . . . . . . . . . . Fastest Speed 18 | 50 160 320 320 280 155 162 190 190 190 31 28 30 61 61 61 61 26 26 26 53 49 49 49 27 21 21 46 46 23 29 20 18 18 18 25 22 19 Average Speed 95 | 146 212 328 320 287 238 243 220 208 190 149 54 57 61 61 61 61 46 43 52 53 52 808 49 49 41 43 46 46 41 45 28 22 24 19 25 22 23 Slowest Speed 1150 | 160 320 470 320 320 570 245 260 260 190 190 121 127 127 127 127 127 54 53 53 116 53 1150 49 107 42 46 46 46 46 46 107 25 147 25 25 91 121 Overloaded Moves 799 | . . . . . . . . . . . . . . . . . . . . . . . . 3 . . . . . 7 . 144 10 423 . . 212 Propulsion Burnouts . | . . . . . . . . . . . . . . . . . . . . . . . . . . . . . . . . . . . . . . Robots Hopped . | . . . . . . . . . . . . . . . . . . . . . . . . . . . . . . . . . . . . . . Cave-ins Triggered 1 | . . . . . . . 1 . . . . . . . . . . . . . . . . . . . . . . . . . . . . . . Spacefolds 21 | . . . . . . . . . . . . . . . . . . . . . . . . . . . . . . . . . . . 16 4 1 Exploration Rate (%) 62 | 6 99 99 59 78 74 16 92 97 83 62 67 46 96 94 69 91 13 91 17 87 58 75 79 27 91 12 87 93 61 90 17 39 47 53 43 23 49 Regions Visited 37 Branch Regions 24 Pre-discovered Areas 10 | . 1 . 1 . 2 . . . 1 . . . . . 1 . . . . . . . . . . . 1 . 3 . . . . . . . . Known Exits Taken 10 | . . . . . 1 1 . . . . . 1 . . . 1 . . 1 . . . . . . 1 . 1 . . 1 . 1 . . 1 . Unknown Exits Taken 23 | 1 1 1 1 1 . . 1 1 1 1 1 . 1 1 1 . . . . 1 1 1 1 . . . 1 . 1 1 . 1 . 1 1 . . Scrap Searched 33 | . . 1 . 1 . . 3 3 . . 2 . 6 8 . 4 . . . . . . . . . . 2 2 . 1 . . . . . . . Spaces Dug 544 | . . . . 2 . 11 110 20 3 2 7 35 13 39 . 5 12 . 18 1 . . 7 30 . 7 16 5 . 6 23 7 56 2 7 25 75 Terrain Destroyed 1324 | . 5 10 . 3 125 142 186 67 4 73 11 40 31 43 . 12 18 . 28 49 . . 11 34 . 28 16 131 . 6 25 8 69 4 9 28 108 Melee 251 | . . . . . . 4 . . 2 2 6 31 13 29 . 3 11 . 11 1 . . 4 23 . 6 16 5 . 4 17 6 24 1 . 4 28 Projectile 385 | . . . . 3 . 10 114 24 2 2 5 9 5 14 . 6 7 . . . . . 7 11 . 6 . . . 2 8 2 45 3 9 24 67 AOE 688 | . 5 10 . . 125 128 72 43 . 69 . . 13 . . 3 . . 17 48 . . . . . 16 . 126 . . . . . . . . 13 Terrain Rammed . | . . . . . . . . . . . . . . . . . . . . . . . . . . . . . . . . . . . . . . Walls Destroyed . | . . . . . . . . . . . . . . . . . . . . . . . . . . . . . . . . . . . . . . Machines Disabled . | . . . . . . . . . . . . . . . . . . . . . . . . . . . . . . . . . . . . . . Actions | -11 -10 -10 -10 -9 -8 -7 -7 -7 -7 -7 -6 -6 -6 -6 -6 -5 -5 -5 -5 -5 -5 -5 -5 -4 -4 -4 -4 -4 -4 -3 -3 -3 -2 -2 -2 -1 -1 --------- Run | Jun Mat Min Exi Min Mat Fac Low Low Zio Dee Pro Fac Low Low Dat Pro Fac Was Fac Ext Cet Arc Hub Fac Was Fac Upp Upp Zhi Pro Res Qua Res Tes Sec Acc Com Total 35990 | 168 796 633 213 374 1081 954 1399 937 1239 947 510 2347 1161 1150 82 982 677 443 912 1768 312 1462 935 1414 407 572 1054 945 230 757 655 219 2131 539 519 847 4219 Wait 4528 | 79 58 28 . 11 110 143 268 7 14 80 67 307 63 178 . 110 88 74 175 494 89 1091 108 111 47 77 76 36 1 15 27 4 34 . 4 134 320 Move 27671 | 58 654 584 208 328 629 508 931 867 1180 737 417 1866 1036 895 81 788 524 343 675 1062 190 347 771 1172 338 426 913 892 208 724 523 198 1784 489 484 637 3204 Hop . | . . . . . . . . . . . . . . . . . . . . . . . . . . . . . . . . . . . . . . Pick Up 237 | 5 13 5 1 4 33 28 6 6 5 14 . 9 1 4 . 6 4 4 5 . 1 2 2 8 2 5 . 2 1 . 10 1 14 2 1 4 29 Fast Attach 320 | 6 11 1 . 3 22 9 2 3 8 19 . 28 3 2 . 9 5 3 3 5 5 3 1 11 5 10 5 . 5 . 5 2 55 9 8 7 47 Attach 131 | 1 2 . 2 . 13 15 8 2 3 14 . 2 1 . . . 3 . . 1 . . 1 4 1 2 . 1 . . 4 . 21 1 . 4 25 Detach 98 | . . . 2 1 5 4 5 1 2 10 . 2 . . . . 1 . . 1 2 . 1 2 1 2 . . . . 2 . 25 3 . 5 21 Swap 452 | . 5 2 . 3 25 46 29 13 3 17 14 27 16 11 1 11 12 8 10 12 6 3 9 17 4 13 7 4 7 6 24 1 14 15 3 7 47 Drop 461 | . 6 . . 5 32 27 7 8 12 40 . 33 3 6 . 16 6 7 13 6 9 5 3 15 6 14 6 1 5 1 17 3 58 9 5 9 68 Fire 1142 | 19 45 6 . 16 208 163 137 30 2 13 5 9 7 14 . 8 7 . 2 6 . . 7 11 . 12 . 4 . 2 12 3 52 7 10 24 301 Melee 783 | . . . . . . 4 3 . 10 3 7 64 31 40 . 34 27 4 29 41 10 11 32 62 3 11 47 5 3 9 31 7 74 4 4 16 157 Ram . | . . . . . . . . . . . . . . . . . . . . . . . . . . . . . . . . . . . . . . Kick 5 | . . 1 . 3 . . 1 . . . . . . . . . . . . . . . . . . . . . . . . . . . . . . Crush 16 | . 2 6 . . 4 3 1 . . . . . . . . . . . . . . . . . . . . . . . . . . . . . . Escape Stasis 13 | . . . . . . 4 1 . . . . . . . . . . . . 8 . . . . . . . . . . . . . . . . . Rewire 133 | . . . . . . . . . . . . . . . . . . . . 132 . . . 1 . . . . . . . . . . . . . Trap . | . . . . . . . . . . . . . . . . . . . . . . . . . . . . . . . . . . . . . . Miscellaneous . | . . . . . . . . . . . . . . . . . . . . . . . . . . . . . . . . . . . . . . Route ------- -11/Junkyard -10/Materials (discovered 4 exits: *Mat x3 / *Min) -10/Mines (discovered 3 exits: *Mat x2 / *Exi) -10/Exiles -9/Mines -8/Materials (discovered 2 exits: *Fac x2) -7/Factory (discovered 4 exits: Sto x2 / *Low x2) -7/Lower Caves -7/Lower Caves (discovered 2 exits: *Fac / [*Zio]) -7/Zion (discovered 2 exits: [*Dee] / [*Pro]) -7/Deep Caves -6/Proximity Caves -6/Factory (discovered 6 exits: *Fac x4 / *Low x2) -6/Lower Caves -6/Lower Caves (discovered 2 exits: *Fac / *Dat) -6/Data Miner -5/Proximity Caves -5/Factory (discovered 2 exits: *Fac / *Upp) -5/Waste -5/Factory (discovered 5 exits: *Fac / *Upp x2 / *Ext x2) -5/Extension (discovered 2 exits: *Fac / *Cet) -5/Cetus -5/Archives (discovered 3 exits: *Fac / *Hub x2) -5/Hub_04(d) (discovered 3 exits: *Fac x3) -4/Factory (discovered 3 exits: *Upp x2 / Arm) -4/Waste -4/Factory (discovered 4 exits: *Res / *Upp x2 / Arm) -4/Upper Caves -4/Upper Caves (discovered 2 exits: *Res / *Zhi) -4/Zhirov -3/Proximity Caves -3/Research (discovered 2 exits: *Qua x2) -3/Quarantine -2/Research (discovered 3 exits: *Acc / *Tes x2) -2/Testing -2/Section 7 -1/Access -1/Command History --------- Turn | Location | Event 5 | -11/Junkyard | Discovered new exit (range 15) 234 | -11/Junkyard | Entered Materials 350 | -10/Materials | Build established: Mutant 720 | -10/Materials | Discovered new exit (range 13) 947 | -10/Materials | Repaired Lgt. Treads 1174 | -10/Materials | Discovered new exit (range 4) 1297 | -10/Materials | Core integrity fell below 50% 1475 | -10/Materials | Central database locked down 1498 | -10/Materials | Discovered new exit (range 15) 1667 | -10/Materials | Discovered new exit (range 16) 1860 | -10/Materials | Entered Mines 1924 | -10/Mines | Found a damaged Exp. Sensor Array with a note attached 1931 | -10/Mines | Found Prototype Device 1932 | -10/Mines | Identified Exp. Sensor Array 2216 | -10/Mines | Found a hidden stash of uninstalled traps 2639 | -10/Mines | Received a Mining Laser from a helpful Derelict 2914 | -10/Mines | Deemed a non-threat by the Exiles lab entrance 2914 | -10/Mines | Discovered new exit (range 5) 3154 | -10/Mines | Discovered new exit (range 7) 3467 | -10/Mines | Identified exit to Materials 3857 | -10/Mines | Entered Exiles 3935 | -10/Exiles | Met 8R-AWN 3993 | -10/Exiles | Met EX-HEX 4082 | -10/Exiles | Met EX-BIN 4121 | -10/Exiles | Aligned with FarCom system 4124 | -10/Exiles | Given EX-Vault access code 4198 | -10/Exiles | Opened EX-Vault 4220 | -10/Exiles | Found Longsword +1 4291 | -10/Exiles | Warned to stay clear of 0b10 Research branches 4328 | -10/Exiles | Exiles lab attacked by MAIN.C 4397 | -10/Exiles | Learned location of Zion (-7) 4496 | -10/Exiles | Discovered new exit (range 11) 4527 | -10/Exiles | Left Exiles lab with Longsword +1 4527 | -10/Exiles | Entered Mines 4543 | -9/Mines | Learned location of 1 exit from Materials 4594 | -9/Mines | Met a Derelict bent on vengeance 5102 | -9/Mines | Assisted by bots powering up and referring to "LRC-V3" 5419 | -9/Mines | Assembled infested the area 5421 | -9/Mines | Discovered new exit (range 12) 5421 | -9/Mines | Central database locked down 5424 | -9/Mines | Assisted by a Guerilla fighting off Assembled 5555 | -9/Mines | Entered Materials 5555 | -8/Materials | Evolved 4 slots: Propulsion x2, Utility x2 5556 | -8/Materials | Identified exit to Factory 6125 | -8/Materials | Build established: Scavenger-Mutant 6211 | -8/Materials | Lost 11 parts (1p5n2u3w) 6551 | -8/Materials | Discovered exit to Factory (range 6) 6770 | -8/Materials | Core integrity fell below 50% 7882 | -8/Materials | Entered Factory 7882 | -7/Factory | Evolved 2 slots: Power x1, Utility x1 7936 | -7/Factory | Identified exit to Storage 7936 | -7/Factory | Identified exit to Lower Caves 9082 | -7/Factory | First assault squad dispatched 9185 | -7/Factory | Fabricated Cmb. Airjet? 9384 | -7/Factory | Build established: Mutant 9445 | -7/Factory | Cargo convoy interrupted 9503 | -7/Factory | Destroyed 14 combat bots 9562 | -7/Factory | Lost 3 parts (2n1u) 9718 | -7/Factory | Found Prototype Processor 9718 | -7/Factory | Identified Exp. Signal Interpreter 9770 | -7/Factory | Entered Lower Caves 9854 | -7/Lower Caves | Learned location of 1 exit from Factory 10984 | -7/Lower Caves | Encountered a Warlord checkpoint 11009 | -7/Lower Caves | Learned Factory stockpile data 11739 | -7/Lower Caves | Attracted the attention of an 0b10 outpost 12293 | -7/Lower Caves | Crushed by falling debris 12294 | -7/Lower Caves | Core integrity fell below 50% 12294 | -7/Lower Caves | System corruption reached 10% 12324 | -7/Lower Caves | Lost 3 parts (3u) 12330 | -7/Lower Caves | Discovered new exit (range 7) 12490 | -7/Lower Caves | Entered another Lower Caves area 12656 | -7/Lower Caves | Discovered new exit (range 5) 12801 | -7/Lower Caves | Encountered a Warlord checkpoint 13705 | -7/Lower Caves | Spotted B-75 Beast 14241 | -7/Lower Caves | Discovered new exit (range 10) 14415 | -7/Lower Caves | Entered Zion 14475 | -7/Zion | System corruption cleaned by Quarantine Array 14745 | -7/Zion | Discovered new exit (range 13) 15026 | -7/Zion | Given the Hacking Drone Bay 15058 | -7/Zion | Given A8's code to call for help 15132 | -7/Zion | Discovered new exit (range 5) 15134 | -7/Zion | Saw the warning signs outside the Deep Caves entrance 15522 | -7/Zion | Received a hallucinogenic algorithm 15655 | -7/Zion | Learned Factory emergency access door positions 15944 | -7/Zion | Found Prototype Special Weapon 15947 | -7/Zion | Found Prototype Special Weapon 15950 | -7/Zion | Found Prototype Special Weapon 16561 | -7/Zion | Found Prototype Device 16561 | -7/Zion | Identified Mobile Refinery Mk. CCLXVII 16738 | -7/Zion | Entered Deep Caves 17066 | -7/Deep Caves | Attacked by Z-Imprinter 17078 | -7/Deep Caves | Z-Facility disabled 17089 | -7/Deep Caves | Identified RU-N14's Throwing Claymores (x3) 17091 | -7/Deep Caves | Core integrity fell below 20% 17104 | -7/Deep Caves | Destroyed Z-Imprinter 17121 | -7/Deep Caves | Found Prototype Device 17121 | -7/Deep Caves | Identified Zio. Metafield Generator 17126 | -7/Deep Caves | Lost 3 parts (2p1u) 17160 | -7/Deep Caves | Found Prototype Protection 17235 | -7/Deep Caves | Found Prototype Protection 17235 | -7/Deep Caves | Identified Zio. Heavy Carapace 17394 | -7/Deep Caves | Build established: Scavenger-Mutant 17716 | -7/Deep Caves | Discovered new exit (range 12) 17809 | -7/Deep Caves | Identified Zio. Weapon Casing 17821 | -7/Deep Caves | Found Surveybot 24 Scanner 17822 | -7/Deep Caves | Found Surveybot 24 Chip 17852 | -7/Deep Caves | Found Zio. Weapon Casing 17868 | -7/Deep Caves | Found Zio. Heavy Carapace 17877 | -7/Deep Caves | Found Zio. Heavy Carapace 18069 | -7/Deep Caves | Entered Proximity Caves 18111 | -6/Proximity Caves | Learned 4 Factory zone layouts 18115 | -6/Proximity Caves | Learned location of 1 exit from Factory 18169 | -6/Proximity Caves | Spotter reported a threat 18296 | -6/Proximity Caves | Spotted B-75 Beast 18319 | -6/Proximity Caves | Attracted the attention of an 0b10 checkpoint 18392 | -6/Proximity Caves | Spotter reported a threat 18401 | -6/Proximity Caves | Discovered new exit (range 14) 18411 | -6/Proximity Caves | Entered Factory 18411 | -6/Factory | Evolved 2 slots: Propulsion x1, Utility x1 18412 | -6/Factory | Identified exit to Factory 18412 | -6/Factory | Identified exit to Lower Caves 18761 | -6/Factory | Search patrols dispatched 18862 | -6/Factory | Fabricated Cld. Aerolev Unit? 19118 | -6/Factory | Discovered exit to Factory (range 5) 19476 | -6/Factory | Discovered exit to Factory (range 5) 19709 | -6/Factory | Discovered exit to Factory (range 6) 19751 | -6/Factory | Build established: Mutant 19981 | -6/Factory | Cargo convoy interrupted 20042 | -6/Factory | Entered Lower Caves 20042 | -6/Lower Caves | Accompanied by 1 ally 20178 | -6/Lower Caves | Encountered a Warlord checkpoint 20256 | -6/Lower Caves | Learned Factory interactive machine intel 20407 | -6/Lower Caves | Build established: Scavenger-Mutant 20773 | -6/Lower Caves | Learned Factory interactive machine intel 20819 | -6/Lower Caves | Learned Factory emergency access door positions 20837 | -6/Lower Caves | Discovered new exit (range 10) 20846 | -6/Lower Caves | Entered another Lower Caves area 20846 | -6/Lower Caves | Spotted B-75 Beast 20898 | -6/Lower Caves | Discovered exit to Factory (range 4) 21614 | -6/Lower Caves | Attracted the attention of an 0b10 checkpoint 21672 | -6/Lower Caves | Discovered new exit (range 11) 21709 | -6/Lower Caves | Entered Data Miner 21709 | -6/Data Miner | Discovered new exit (range 6) 21721 | -6/Data Miner | Met Data Miner 21738 | -6/Data Miner | Learned location of Section 7 (-2) 21738 | -6/Data Miner | Acquired the access code to Warlord's prototype stash 21745 | -6/Data Miner | Received God Mode back door access code from Data Miner 21760 | -6/Data Miner | Entered Proximity Caves 21763 | -5/Proximity Caves | Spotted B-75 Beast 21819 | -5/Proximity Caves | Escorted by Enhanced Grunt 21909 | -5/Proximity Caves | Found Prototype Device 21909 | -5/Proximity Caves | Identified Exp. Thermal Shield 22176 | -5/Proximity Caves | Attracted the attention of an 0b10 checkpoint 22412 | -5/Proximity Caves | Discovered exit to Factory (range 12) 22464 | -5/Proximity Caves | Learned Factory terminal intel 22481 | -5/Proximity Caves | Entered Factory 22481 | -5/Factory | Evolved 2 slots: Propulsion x1, Utility x1 22482 | -5/Factory | Identified exit to Upper Caves 22484 | -5/Factory | Loaded intel: 54 interactive machine locations 22485 | -5/Factory | Loaded intel: 28 terminal locations 22635 | -5/Factory | Incoming investigation squad redirected 22787 | -5/Factory | Discovered new exit (range 16) 22882 | -5/Factory | Repaired Cmb. Airjet 22914 | -5/Factory | Sucked down chute 22914 | -5/Factory | Entered Waste 22917 | -5/Waste | Found Unknown Launcher 22917 | -5/Waste | Identified Fusion Bomb Launcher 22930 | -5/Waste | Spotted C-40 Crusher 22931 | -5/Waste | Spotted C-40 Crusher 22932 | -5/Waste | Spotted C-40 Crusher 22966 | -5/Waste | Spotted C-40 Crusher 22975 | -5/Waste | Spotted C-40 Crusher 22982 | -5/Waste | Warlord forces began an assault 23024 | -5/Waste | Allies destroyed C-40 Crusher 23027 | -5/Waste | Spotted C-40 Crusher 23029 | -5/Waste | Allies destroyed C-40 Crusher 23094 | -5/Waste | Discovered new exit (range 12) 23170 | -5/Waste | Entered Factory 23170 | -5/Factory | Accompanied by 10 allies 23171 | -5/Factory | Loaded intel: 53 interactive machine locations 23180 | -5/Factory | Identified exit to Extension 23297 | -5/Factory | Incoming investigation squad redirected 23435 | -5/Factory | Incoming investigation squad redirected 23470 | -5/Factory | First assault squad dispatched 23487 | -5/Factory | Incoming assault squad redirected 23496 | -5/Factory | Fabricated Cld. Aerolev Unit (x1) 23543 | -5/Factory | Incoming investigation squad redirected 23589 | -5/Factory | Discovered new exit (range 14) 23635 | -5/Factory | Build established: Infiltrator-Mutant 23791 | -5/Factory | Entered Extension 23791 | -5/Extension | Accompanied by 2 allies 23808 | -5/Extension | Rescued a captive Derelict 24030 | -5/Extension | Rescued a captive Derelict 24031 | -5/Extension | Rescued a captive Derelict 24336 | -5/Extension | Rescued a captive Derelict 24336 | -5/Extension | Rescued a captive Derelict 24405 | -5/Extension | Build established: Commander-Mutant 24533 | -5/Extension | Spotted B-75 Beast 24555 | -5/Extension | Spotted B-75 Beast 24558 | -5/Extension | Allies destroyed B-75 Beast 24566 | -5/Extension | Allies destroyed B-75 Beast 24660 | -5/Extension | Rescued a captive Derelict 24826 | -5/Extension | Rescued a captive Derelict 24916 | -5/Extension | Disrupted transfer network 24961 | -5/Extension | Rescued a captive Derelict 24963 | -5/Extension | Rescued a captive Derelict 24990 | -5/Extension | Rescued A7 24991 | -5/Extension | First assault squad dispatched 25011 | -5/Extension | Rescued a captive Derelict 25050 | -5/Extension | Discovered new exit (range 10) 25051 | -5/Extension | Discovered new exit (range 6) 25113 | -5/Extension | Entered Cetus 25113 | -5/Cetus | Accompanied by 11 allies (A7) 25118 | -5/Cetus | Acquired a Cetus Manufacturing Module code from A7 25134 | -5/Cetus | Spotted Cetus Guard 25134 | -5/Cetus | Spotted Cetus Guard 25138 | -5/Cetus | Spotted Cetus Guard 25138 | -5/Cetus | Spotted Cetus Guard 25141 | -5/Cetus | Allies destroyed Cetus Guard 25141 | -5/Cetus | Allies destroyed Cetus Guard 25146 | -5/Cetus | Allies destroyed Cetus Guard 25149 | -5/Cetus | Allies destroyed Cetus Guard 25178 | -5/Cetus | Started Cetus Manufacturing Module 25183 | -5/Cetus | Escorted A7 to Cetus Mainframe 25203 | -5/Cetus | Manufactured an Enhanced Grunt 25212 | -5/Cetus | Discovered new exit (range 16) 25228 | -5/Cetus | Manufactured an Enhanced Grunt 25253 | -5/Cetus | Manufactured an Enhanced Grunt 25278 | -5/Cetus | Manufactured an Enhanced Grunt 25303 | -5/Cetus | Manufactured an Enhanced Grunt 25304 | -5/Cetus | Destroyed A7 25306 | -5/Cetus | Extracted ID and sensor layout for unrecognized location from A7's data core 25345 | -5/Cetus | Entered Archives 25345 | -5/Archives | Accompanied by 13 allies 25366 | -5/Archives | Discovered new exit (range 16) 25404 | -5/Archives | Discovered new exit (range 15) 29258 | -5/Archives | Discovered new exit (range 15) 29284 | -5/Archives | Entered Hub_04(d) 29284 | -5/Hub_04(d) | Accompanied by 12 allies 29286 | -5/Hub_04(d) | Discovered new exit (range 12) 29522 | -5/Hub_04(d) | Discovered new exit (range 2) 29584 | -5/Hub_04(d) | First assault squad dispatched 29603 | -5/Hub_04(d) | Incoming assault squad redirected 29613 | -5/Hub_04(d) | Discovered new exit (range 6) 29660 | -5/Hub_04(d) | Network Hub disabled 29677 | -5/Hub_04(d) | Incoming investigation squad redirected 29686 | -5/Hub_04(d) | Spotted Lightning 29691 | -5/Hub_04(d) | Spotted Lightning 29733 | -5/Hub_04(d) | Network Hub disabled 29758 | -5/Hub_04(d) | Incoming investigation squad redirected 29761 | -5/Hub_04(d) | Incoming assault squad redirected 29862 | -5/Hub_04(d) | Network Hub disabled 29869 | -5/Hub_04(d) | Entered Factory 29869 | -4/Factory | Evolved 2 slots: Propulsion x1, Utility x1 29949 | -4/Factory | Discovered new exit (range 14) 30011 | -4/Factory | Build established: Scavenger-Mutant 30054 | -4/Factory | Fabricated Com. HERF Cannon (x1) 30093 | -4/Factory | Identified exit to Upper Caves 30093 | -4/Factory | Identified exit to Armory 30399 | -4/Factory | Repaired Cld. Aerolev Unit? 30458 | -4/Factory | Repaired Broken Adv. Phase Shifter 30491 | -4/Factory | Found Quantum Capacitor 30556 | -4/Factory | Incoming investigation squad redirected 30688 | -4/Factory | Incoming investigation squad redirected 30702 | -4/Factory | Fabricated Cmb. Gravmag System? 30774 | -4/Factory | Sucked down chute 30774 | -4/Factory | Entered Waste 30790 | -4/Waste | 1 allies followed down the chute 30803 | -4/Waste | Warlord forces began an assault 30819 | -4/Waste | Spotted C-40 Crusher 30822 | -4/Waste | Spotted C-40 Crusher 30825 | -4/Waste | Allies destroyed C-40 Crusher 30830 | -4/Waste | 3 allies followed down the chute 30834 | -4/Waste | Allies destroyed C-40 Crusher 30837 | -4/Waste | Spotted C-40 Crusher 30843 | -4/Waste | Allies destroyed C-40 Crusher 30844 | -4/Waste | Spotted C-40 Crusher 30846 | -4/Waste | Allies destroyed C-40 Crusher 30846 | -4/Waste | Spotted C-40 Crusher 30861 | -4/Waste | Allies destroyed C-40 Crusher 30870 | -4/Waste | Found Unknown Device 30870 | -4/Waste | Identified Adv. Force Booster 30888 | -4/Waste | Spotted C-40 Crusher 30899 | -4/Waste | Allies destroyed C-40 Crusher 30909 | -4/Waste | Discovered new exit (range 16) 30943 | -4/Waste | Found Broken Adv. Powered Armor 30986 | -4/Waste | Entered Factory 30986 | -4/Factory | Accompanied by 14 allies 31159 | -4/Factory | Fabricated Neutron Missile Launcher (x1) 31188 | -4/Factory | Incoming investigation squad redirected 31219 | -4/Factory | Fabricated Cmb. Gravmag System (x2) 31268 | -4/Factory | Discovered new exit (range 14) 31328 | -4/Factory | Garrison activated, responded to threat 31329 | -4/Factory | P-70 Sage assimilated allied C-35 Carver 31347 | -4/Factory | Entered Upper Caves 31361 | -4/Upper Caves | Learned location of Quarantine (-3) 31376 | -4/Upper Caves | Encountered a Warlord checkpoint 31680 | -4/Upper Caves | Learned Research terminal intel 31707 | -4/Upper Caves | Discovered new exit (range 14) 31959 | -4/Upper Caves | Entered another Upper Caves area 32130 | -4/Upper Caves | Discovered new exit (range 4) 32328 | -4/Upper Caves | Identified exit to Zhirov 32336 | -4/Upper Caves | Learned Research trap positions 32435 | -4/Upper Caves | Entered Zhirov 32435 | -4/Zhirov | Discovered new exit (range 3) 32444 | -4/Zhirov | Met Zhirov 32452 | -4/Zhirov | Learned location of Command (-1) 32460 | -4/Zhirov | Zhirov requested help retrieving the SGEMP Prototype 32470 | -4/Zhirov | Found Alien Artifact 32470 | -4/Zhirov | Identified Integrated Dissipator 32470 | -4/Zhirov | Installed Integrated Dissipator, increased core heat dissipation (+20) 32504 | -4/Zhirov | Found Alien Artifact 32549 | -4/Zhirov | Entered Proximity Caves 32686 | -3/Proximity Caves | Attracted the attention of an 0b10 checkpoint 32791 | -3/Proximity Caves | Spotted B-86 Titan 32921 | -3/Proximity Caves | Attracted the attention of an 0b10 outpost 32926 | -3/Proximity Caves | Discovered new exit (range 9) 32928 | -3/Proximity Caves | Entered Research 32928 | -3/Research | Evolved 2 slots: Power x1, Utility x1 32929 | -3/Research | Loaded intel: 100 trap records 32930 | -3/Research | Loaded intel: 25 terminal locations 33005 | -3/Research | Identified exit to Quarantine 33065 | -3/Research | Found Quantum Capacitor 33207 | -3/Research | Identified Transdimensional Reconstructor 33252 | -3/Research | Entered Quarantine 33253 | -3/Quarantine | Maximum security lockdown engaged 33261 | -3/Quarantine | Found Alien Artifact 33261 | -3/Quarantine | Identified Core Reset Matrix 33261 | -3/Quarantine | Used Core Reset Matrix 33265 | -3/Quarantine | Detected hypermatrix surge 33265 | -3/Quarantine | Sensed 13 artifacts in vicinity 33293 | -3/Quarantine | Build established: Scavenger-Ninja 33310 | -3/Quarantine | Found Sigix Broadsword 33312 | -3/Quarantine | Spotted Alpha 7 33324 | -3/Quarantine | Discovered new exit (range 4) 33329 | -3/Quarantine | Entered Research 33329 | -2/Research | Evolved 2 slots: Propulsion x1, Weapon x1 33377 | -2/Research | Discovered new exit (range 18) 33579 | -2/Research | First assault squad dispatched 33605 | -2/Research | Incoming assault squad redirected 33618 | -2/Research | Discovered new exit (range 15) 33619 | -2/Research | Found Unknown Protection 33619 | -2/Research | Identified Powered Armor 33694 | -2/Research | Found Prototype Processor 33713 | -2/Research | Identified Exp. Core Analyzer 33776 | -2/Research | Found Prototype Reactor 33854 | -2/Research | Build established: Alien-Ninja 33885 | -2/Research | Incoming assault squad redirected 33945 | -2/Research | Identified Vortex Chain Reactor 33949 | -2/Research | Found Prototype Device 33951 | -2/Research | Identified Exp. Thermal Shield 33969 | -2/Research | Identified exit to Testing 34053 | -2/Research | Found Prototype Device 34103 | -2/Research | Identified Exp. Transmission Jammer 34263 | -2/Research | Spotted B-90 Cyclops 34303 | -2/Research | Entered Testing 34304 | -2/Testing | Maximum security lockdown engaged 34314 | -2/Testing | Found Prototype Energy Gun 34314 | -2/Testing | Identified Warp Gun 34347 | -2/Testing | Spotted PP-H6J3WUMOWJ 34421 | -2/Testing | Found Prototype Launcher 34451 | -2/Testing | Spotted Fortress 34468 | -2/Testing | Discovered new exit (range 6) 34471 | -2/Testing | Entered Section 7 34472 | -2/Section 7 | Maximum security lockdown engaged 34472 | -2/Section 7 | Sensed 19 artifacts in vicinity 34495 | -2/Section 7 | Found Spacefold Activator 34516 | -2/Section 7 | Found Integrated Dissipator 34516 | -2/Section 7 | Installed Integrated Dissipator, increased core heat dissipation (+20) 34528 | -2/Section 7 | Found Integrity Redistributor 34568 | -2/Section 7 | Spotted B-99 Colossus 34580 | -2/Section 7 | Found Core Expander 34580 | -2/Section 7 | Installed Core Expander, added new Power slot 34592 | -2/Section 7 | Found LRC Energy Well 34592 | -2/Section 7 | Installed LRC Energy Well, increased energy storage capacity (+250) 34595 | -2/Section 7 | Found LRC Boosters 34595 | -2/Section 7 | Installed LRC Boosters, increased mass support (+10) 34640 | -2/Section 7 | Discovered new exit (range 13) 34657 | -2/Section 7 | Entered Access 34657 | -1/Access | Evolved 2 slots: Propulsion x1, Utility x1 34707 | -1/Access | Identified exit to Command 34907 | -1/Access | First assault squad dispatched 35067 | -1/Access | Entered Command 35352 | -1/Command | First assault squad dispatched 35381 | -1/Command | Incoming assault squad redirected 35525 | -1/Command | Destroyed B-99 Colossus 35534 | -1/Command | Found Prototype Ballistic Gun 35539 | -1/Command | Identified Multirail 35654 | -1/Command | Found Unknown Device 35654 | -1/Command | Identified Launcher Loader 35738 | -1/Command | Incoming assault squad redirected 35765 | -1/Command | Build established: Alien-Sprinter 36368 | -1/Command | Incoming assault squad redirected 36410 | -1/Command | Spotted Combat Programmer 36446 | -1/Command | Spotted Combat Programmer 36454 | -1/Command | Destroyed Combat Programmer 36458 | -1/Command | Destroyed Combat Programmer 36479 | -1/Command | Spotted M Guard 36481 | -1/Command | Spotted M Guard 36491 | -1/Command | Destroyed M Guard 36556 | -1/Command | Destroyed M Guard 36556 | -1/Command | All MAIN.C guards destroyed 36562 | -1/Command | Found Corrupted Prototype Device 36562 | -1/Command | Identified AEGIS Remote Shield 36563 | -1/Command | System corruption reached 10% 36565 | -1/Command | Found Corrupted Prototype Protection 36565 | -1/Command | Identified Hvy. Regenerative Plating 36568 | -1/Command | Found Corrupted Prototype Reactor 36568 | -1/Command | Identified Zero-point Reactor 36575 | -1/Command | Used Integrity Redistributor, redistributed integrity from core (-151) 36607 | -1/Command | Identified Z-bomb Delivery System 36615 | -1/Command | Incoming assault squad redirected 36628 | -1/Command | Found Corrupted AEGIS Remote Shield 36630 | -1/Command | Found Corrupted Zero-point Reactor 36633 | -1/Command | System corruption reached 30% 36643 | -1/Command | Destroyed 7 combat bots 36703 | -1/Command | Incoming assault squad redirected 36783 | -1/Command | Met MAIN.C 36787 | -1/Command | 0b10 Conduit disabled 36881 | -1/Command | Destroyed MAIN.C Shell 36882 | -1/Command | MAIN.C activated Command garrisons 36984 | -1/Command | Core integrity fell below 50% 36990 | -1/Command | Emitted hypermatrix ping 36995 | -1/Command | Assembled emerged from beneath the floor 37006 | -1/Command | Core integrity fell below 20% 37015 | -1/Command | Destroyed by MAIN.C with Omega Cannon Last Messages --------------- 37001_ Med. Storage Unit destroyed. 37001_ Knocked back. 37002_ Acquired 1 matter. 37003_ Dropped Transdimensional Reconstructor. 37005_ Slug penetrates as-35476. 37005_ as-35476 suffers critical hit (Destroy). 37005_ as-35476 destroyed. 37005_ Cmb. Gravmag System destroyed. 37005_ Critical hit (Blast). 37005_ Knocked back. 37006_ ,WF5JUWFS=RN&:DASTIVYZI7U0/B: Z X8LIHAC 37008_ Sigix Broadsword destroyed. 37009_ Acquired 5 matter. 37011_ Cmb. Linear Gravjet destroyed. 37011_ Knocked back. 37012_ Acquired 9 matter. 37013_ Slug penetrates as-43013. 37013_ as-43013 destroyed. 37013_ Slug penetrates 0b10 Conduit. 37015_ as-51339 destroyed. Map ----- +----------------------------------------------------+ | ?????????????????????????????????????????????????? | | ?????????????????????????????????????????????????? | | ?????????????????????????????????????????????????? | | ?????????????????????????????????????????????????? | | ?????????????????????????????????????????????????? | | ?????????????????????????????????????????????????? | | ?????????????????????????????????????????????????? | | ?????????????????????????????????????????????????? | | ?????????????????????????????????????????????????? | | ?????????????????????????????????????????????????? | | ?????????????????????????????????????????????????? | | ?????????????????????????????????????????????????? | | ????????????????######################???????????? | | ????????????????"" " "" "" #???????????? | | ?????????????????" " #???????????? | | ???????????????#"""" " ############# | | ???????????????#""" " " / | | ???????????????#" a p / | | ???????????????#"" g / | | ???????????????#"" " =! % % ############# | | ???????????????# #???????????? | | ???????????????# % % h #???????????? | | ???????????????# " ! % ""#???????????? | | ???????????????#""""""""" = """""#???????????? | | ???????????????#"" % """"""#???????????? | | ???????????????# @ """"""#???????????? | | ???????????????# " " " #???????????? | | ???????????????# a " " " " #???????????? | | ???????????????" % " " " """ " #???????????? | | ???????????????" M "" " " "" " #???????????? | | ??????????????"" == " " " " ????????????? | | ?????????????## !% """"""""" " #???????????? | | ?????????????# " """ " """"""?"#???????????? | | ?????????????# """ " " " ??#???????????? | | ?????????????# # # #############?????????????????? | | ?????????????#######?????????????????????????????? | | ?????????????????????????????????????????????????? | | ?????????????????????????????????????????????????? | | ?????????????????????????????????????????????????? | | ?????????????????????????????????????????????????? | | ?????????????????????????????????????????????????? | | ?????????????????????????????????????????????????? | | ?????????????????????????????????????????????????? | | ?????????????????????????????????????????????????? | | ?????????????????????????????????????????????????? | | ?????????????????????????????????????????????????? | | ?????????????????????????????????????????????????? | | ?????????????????????????????????????????????????? | | ?????????????????????????????????????????????????? | | ?????????????????????????????????????????????????? | +----------------------------------------------------+ Best States ------------- Heat Dissipation 192 Coolant Potential 100 Energy Generation 111 Energy Capacity 1830 Matter Stores 340 Matter Capacity 350 Sight Range 16 Robot Scan Range 20 Terrain Scan Range 18 Terrain Scan Density 2010 ECM Strength 1 Jamming Range 22 Cloak Strength 4 Additional Mass Support 16 Armor Coverage 1600 Resistance: KI 30 Resistance: TH 30 Utility Shielding 66 Weapon Shielding 100 Point Defense Rating 160 Weapon Cycling 15 Melee Speed Boost 40 Phase Shifting 15 Evasion (%) 88 Targeting Accuracy 6 Melee Accuracy 12 Armor Integrity Analysis 40 Recoil Reduction 4 Matter Filtering 50 Force Boost 40 Salvage Targeting 4 Offensive Hacking 26 Authchip Count 1 Item Schematics ----------------- None Robot Schematics ------------------ None Fabricated ------------ Cmb. Airjet | x2 | -7/Factory Cld. Aerolev Unit | x1 | -6/Factory Cld. Aerolev Unit | x1 | -5/Factory Com. HERF Cannon | x1 | -4/Factory | Preloaded Cmb. Gravmag System | x2 | -4/Factory Neutron Missile Launcher | x1 | -4/Factory | Preloaded Cmb. Gravmag System | x2 | -4/Factory Alien Tech Used ----------------- Integrated Dissipator Core Reset Matrix Sigix Broadsword Spacefold Activator Core Expander LRC Energy Well LRC Boosters Integrity Redistributor Achievements -------------- No Explosion For You Z1$+NX3F=JRE3_ZNQR Challenges ------------ None Game ------ Seed DecoyTeslaFacilitator Manual? 0 Play Time 15:40:30 Cumulative 332.0 hours Start 2023.08.16 @ 15:52:18 End 2023.09.06 @ 23:47:37 Sessions 21 Manual Loads 0 Difficulty Rogue Special Mode None Game No. 162 Rogue 162 Adventurer 0 Explorer 0 Win Type - Total 15 Types 8/0/3/3/0/0/1/0/0 Lore% 85 Gallery% 89 Achievement% 78 Wizard Run 0 Options --------- ASCII 0 Keyboard 1 Movement Arrows Keybinds 0 Fullscreen 2 Font 18/X11 Map View 76x50 Tactical HUD 1 Map Filters NONE Filters NONE Steam 1 RUN: 78c060c0-1af7-4988-b1ca-0d6a156f095e